Cogmind - Beta 17 @@@ ROGUE MODE // 2026.07.25 @ 01:30:27 Player: kite Result: Self-destructed Performance ------------- Evolutions (6) 3000 Regions Visited (32) 6400 Robots Destroyed (431) 2155 Value Destroyed (19948) 19948 Prototype IDs (240) 4800 Alien Tech Used (0) 0 Bonus (10977) 10977 TOTAL SCORE: 47280 Bonus ------- High Alert Combat Kills 4086 Follower Combat Kills 2866 Entered Garrisons 800 Entered DSFs 500 Network Hubs Disabled 400 Met Data Miner 300 Used Data Conduit 3000 Acquired ECA 300 Built Enhanced Grunts 300 Met R17 at Cetus 500 Friendly Fire -2075 Cogmind --------- Core Integrity 484/1150 Matter 127/300 Energy 100/100 System Corruption 16% Temperature Cool (0) Movement Rolling (220) Ox8 Location -4/Factory Parts ------- > --- POWER (1) -------- (None) > --- PROPULSION (8) --- Compact Wheel > --- UTILITY (6) ------ Cargo Storage Unit > --- WEAPON (4) ------- Heavy Pick > --- INVENTORY (30) --- Particle Reactor Advanced Energy Well (456) Structural Scanner Improved Sensor Array Advanced Sensor Array Improved Transmission Jammer Graphene Brace Remote Force Field Remote Force Field Advanced System Shield Army-in-a-Box (30/30) Improved Plasma Cutter Peak State ------------ > --- POWER ------------ Light Quantum Reactor > --- PROPULSION ------- Centrium Heavy Treads Centrium Heavy Treads Centrium Heavy Treads Centrium Heavy Treads > --- UTILITY ---------- Cargo Storage Unit Advanced Sensor Array Advanced Signal Interpreter Improved Transmission Jammer Centrium Medium Armor Plating > --- WEAPON ----------- Ripper Greatsword Heavy Pick > --- INVENTORY -------- Particle Reactor Compact Particle Reactor Improved Treads Medium Treads Medium Treads Centrium Heavy Treads Centrium Heavy Treads Advanced Energy Well Structural Scanner Improved Sensor Array Centrium Medium Armor Plating Improved Hacking Suite Advanced Hacking Suite Advanced System Shield Dynamic Insulation System Army-in-a-Box Matter Neutralizer Tesla Bomb Launcher Improved Plasma Cutter Heavy Mace Greatsword [Rating: 144] Favorites ----------- Power Heavy Ion Engine Engine Heavy Ion Engine Power Core Cooled Fission Core Reactor Particle Reactor Propulsion Light Treads Treads Light Treads Leg Armored Leg Wheel Wheel Flight Unit Cesium-ion Thruster Utility High-capacity Storage Unit Device Advanced Heat Sink Storage High-capacity Storage Unit Processor Improved Signal Interpreter Hackware Improved Hacking Suite Protection Hardened Medium Armor Plating Weapon Heavy Beamcaster Energy Gun Heavy Beamcaster Energy Cannon Compact HERF Cannon Ballistic Gun Assault Rifle Ballistic Cannon Heavy Gauss Cannon Launcher Shock Bomb Launcher Special Weapon Remote Datajack Impact Weapon Power Maul Slashing Weapon Scythe Piercing Weapon Spear Build | -11 -10 -10 -9 -9 -9 -8 -8 -8 -8 -8 -8 -7 -7 -7 -7 -7 -7 -6 -6 -6 -6 -6 -6 -6 -6 -6 -5 -5 -5 -5 -5 -4 ------- Run | Yrd Mat Min Mat Min Exi Min Mat Gar Mat Gar Mat Fac Was Fac Low Low Dat Pro Fac Was Fac Gar Fac Gar Fac DSF Fac Ext Cet Arc Hub Fac Slots Evolved 12 | . . . 2 . . . 2 . . . . 2 . . . . . . 2 . . . . . . . 2 . . . . 2 Power . | . . . . . . . . . . . . . . . . . . . . . . . . . . . . . . . . . Propulsion 6 | . . . 2 . . . . . . . . . . . . . . . 2 . . . . . . . 2 . . . . . Utility 4 | . . . . . . . 2 . . . . . . . . . . . . . . . . . . . . . . . . 2 Weapon 2 | . . . . . . . . . . . . 2 . . . . . . . . . . . . . . . . . . . . Parts Attached 298 | 6 5 1 18 1 2 1 22 9 11 16 10 8 1 3 1 2 12 1 8 17 2 34 . 35 1 14 11 15 8 6 3 14 Power 30 | 1 1 . 2 . . . 1 1 2 3 2 1 . . . 1 2 . . 1 1 2 . 2 . 2 1 . 1 1 . 2 Engine 13 | 1 1 . 2 . . . 1 1 1 2 1 1 . . . 1 1 . . . . . . . . . . . . . . . Core 6 | . . . . . . . . . 1 1 1 . . . . . . . . . . . . . . 1 1 . . . . 1 Reactor 11 | . . . . . . . . . . . . . . . . . 1 . . 1 1 2 . 2 . 1 . . 1 1 . 1 Propulsion 109 | 2 . . 7 . . . 6 4 7 6 3 4 1 . . . 7 1 3 3 . 14 . 15 1 7 2 7 4 . 2 3 Treads 62 | 2 . . 7 . . . 6 3 7 6 3 1 1 . . . 4 . . 2 . 4 . 8 . . . . 4 . 2 2 Leg 40 | . . . . . . . . 1 . . . . . . . . 3 1 1 1 . 9 . 7 1 7 2 7 . . . . Wheel 6 | . . . . . . . . . . . . 3 . . . . . . 2 . . . . . . . . . . . . 1 Hover . | . . . . . . . . . . . . . . . . . . . . . . . . . . . . . . . . . Flight 1 | . . . . . . . . . . . . . . . . . . . . . . 1 . . . . . . . . . . Utility 86 | 1 4 1 3 1 . . 12 2 1 4 5 1 . 3 1 1 3 . 4 2 . 8 . 6 . 2 5 1 2 5 1 7 Device 38 | . 1 1 . . . . 6 . . . 4 1 . 2 1 . 1 . 2 2 . 3 . 3 . 1 3 . . 3 1 3 Storage 7 | 1 1 . 1 . . . . 1 . . . . . . . . . . . . . 2 . . . . 1 . . . . . Processor 11 | . 1 . . . . . 3 . . . 1 . . . . . 1 . 1 . . 1 . 1 . . 1 . . . . 1 Hackware 6 | . . . . . . . . . . . . . . 1 . . . . 1 . . . . . . . . . . 2 . 2 Protection 24 | . 1 . 2 1 . . 3 1 1 4 . . . . . 1 1 . . . . 2 . 2 . 1 . 1 2 . . 1 Artifact . | . . . . . . . . . . . . . . . . . . . . . . . . . . . . . . . . . Weapon 73 | 2 . . 6 . 2 1 3 2 1 3 . 2 . . . . . . 1 11 1 10 . 12 . 3 3 7 1 . . 2 Energy Gun 13 | . . . . . . . . . . . . . . . . . . . . 4 . 4 . 5 . . . . . . . . Energy Cannon 6 | . . . . . . . . . . . . . . . . . . . . . 1 1 . 2 . 1 . . . . . 1 Ballistic Gun 8 | 2 . . . . . . . . . . . . . . . . . . . 4 . 1 . 1 . . . . . . . . Ballistic Cannon 6 | . . . 1 . . . . . . . . . . . . . . . . 1 . 1 . 3 . . . . . . . . Launcher 9 | . . . . . . 1 . 1 1 1 . . . . . . . . 1 1 . . . . . . 1 2 . . . . Special Weapon 2 | . . . . . . . . . . . . 1 . . . . . . . . . . . . . . . 1 . . . . Impact Weapon 10 | . . . 5 . . . 3 1 . . . . . . . . . . . . . . . . . . . 1 . . . . Slashing Weapon 16 | . . . . . 1 . . . . 2 . 1 . . . . . . . . . 3 . 1 . 2 1 3 1 . . 1 Piercing Weapon 3 | . . . . . 1 . . . . . . . . . . . . . . 1 . . . . . . 1 . . . . . Special Melee Weapon . | . . . . . . . . . . . . . . . . . . . . . . . . . . . . . . . . . Unidentified Prototypes 3 | . . . 1 . . . . . . . . . . . . . . . . . . . . . . . 1 . 1 . . . Corrupted Parts 22 | . . . . . . . . 1 . 1 1 . . . . . . 1 . . . . . 11 . . . . 5 . 2 . System Corruption 145 | . . . . . . . . 2 . 7 3 . . . . . . 9 . . . . . 71 . . . . 42 . 11 . Parts Lost 92 | . . . 4 . . . 2 6 3 5 1 1 . . . . 8 1 2 . . 9 . 21 . 1 2 2 1 . 1 22 Power 10 | . . . 1 . . . . . 1 2 . . . . . . 1 . . . . . . 1 . 1 . . . . . 3 Propulsion 43 | . . . 3 . . . 2 4 2 3 1 1 . . . . 5 . 1 . . 1 . 11 . . . 1 . . . 8 Utility 11 | . . . . . . . . 2 . . . . . . . . 1 . . . . 2 . 2 . . . . . . . 4 Weapon 28 | . . . . . . . . . . . . . . . . . 1 1 1 . . 6 . 7 . . 2 1 1 . 1 7 Highest Loss Streak 18 | . . . 1 . . . 1 2 3 3 1 1 . . . . 7 1 2 . . 3 . 12 . 1 1 2 1 . 1 18 To Critical Strikes . | . . . . . . . . . . . . . . . . . . . . . . . . . . . . . . . . . Average Backups 15 | 2 6 14 19 19 16 15 14 14 14 14 14 13 14 13 13 14 12 13 13 13 13 13 14 13 14 11 15 18 19 20 20 18 Power . | . . . . . . . . . . . . . . . . . . . . . 1 1 3 1 1 . . 1 . 1 1 1 Propulsion 2 | 1 2 2 2 2 2 2 2 1 2 1 2 1 3 3 3 2 1 . . 1 1 1 3 2 1 1 1 2 2 2 4 4 Utility 8 | . 1 5 8 10 8 8 7 7 7 7 8 10 9 8 8 8 8 11 11 9 7 6 7 7 8 5 6 9 9 11 10 9 Weapon 3 | . 2 6 7 6 5 5 4 5 5 4 3 1 1 1 1 1 1 . . 2 3 4 1 1 3 3 6 5 5 4 4 2 Tool/Special . | . . . . . . . . . . . . . . . . . . . . . . . . . . . . . . . . . Unused Backups 93 | . . 2 11 3 9 . 6 3 4 1 1 . . 1 . . 1 1 3 9 2 2 . 8 . 6 8 1 5 1 . 5 Power 5 | . . . . . . . . . . . . . . . . . . . . 3 . . . . . . 1 . 1 . . . Propulsion 20 | . . 2 . . . . 1 2 1 . . . . . . . . 1 1 . 1 2 . 3 . 1 2 1 1 . . 1 Utility 41 | . . . 2 3 5 . 2 1 1 1 1 . . 1 . . 1 . 2 6 . . . 3 . 4 . . 3 1 . 4 Weapon 25 | . . . 9 . 3 . 3 . 2 . . . . . . . . . . . 1 . . 2 . . 5 . . . . . Tool/Special 2 | . . . . . 1 . . . . . . . . . . . . . . . . . . . . 1 . . . . . . Average Slot Usage (%) 89 | . 98 100 99 100 100 100 99 99 99 98 99 91 91 92 92 92 79 92 85 82 80 84 80 83 100 90 83 84 65 63 61 61 Engine 4 | . 14 14 10 11 11 11 9 9 7 4 7 7 7 7 7 7 5 7 6 . . . . . . . . . . . . . Reactor 1 | . . . . . . . . . . . . . . . . . . . . 5 6 6 6 6 6 4 1 . . 5 5 3 Treads 19 | . 28 28 43 44 44 44 35 34 35 35 35 13 . . . 3 10 4 3 1 . 1 20 19 . . . . 18 23 23 18 Leg 10 | . . . . . . . . . . . . . . . . . 5 25 26 21 20 25 . 9 40 40 46 42 6 . . . Wheel 1 | . . . . . . . . . . . . 10 22 23 23 18 6 . 5 . . . . . . . . . . . . . Device 4 | . 1 10 . . . . 7 5 . . 7 4 7 5 7 6 5 7 6 8 13 10 3 4 13 8 4 . . 2 4 4 Storage 7 | . 16 14 11 11 11 11 9 10 10 9 9 7 7 7 7 7 7 7 6 6 6 6 6 6 6 6 5 6 8 5 5 5 Processor 8 | . 1 . . . . . 12 9 9 9 13 15 15 15 15 15 14 15 12 10 6 6 13 10 6 6 5 5 5 5 5 4 Protection 5 | . 7 3 10 11 11 11 6 11 16 17 5 2 . . . . 1 . . . . . 2 3 . 3 1 4 2 . . 1 Energy Gun 3 | . . . . . . . . . . . . . . . . . . . . 12 25 19 . 3 . . . . . . . . Ballistic Gun 1 | . 28 28 3 . . . . . . . . . . . . . . . . . . 1 . . . . . . . . . . Launcher 1 | . . . . . . . . 2 . 2 . . . . . . . 5 2 8 . . . . . . . 3 2 . . . Impact Weapon 4 | . . . 16 22 13 10 9 7 9 6 9 7 7 7 7 7 1 . . . . . . . . . . 3 2 . . 2 Slashing Weapon 5 | . . . . . 4 11 . . . 6 9 15 15 15 15 15 10 4 . . . 1 20 9 4 8 10 4 7 10 10 5 Piercing Weapon 3 | . . . . . 3 . 7 7 8 1 . 4 7 7 7 7 7 7 6 4 . . . . . . . 4 1 5 2 4 Peak Build Rating 144 | 6 9 8 22 22 28 28 44 43 41 42 40 52 61 50 51 53 58 65 71 99 99 103 99 103 82 92 90 100 132 132 127 144 Average Rating 62 | 4 7 7 18 22 26 27 39 38 38 36 37 48 50 49 50 51 48 62 62 92 98 83 96 82 79 80 86 91 121 125 124 125 On Entrance 58 | . 6 8 8 22 22 28 28 43 37 39 35 40 49 51 48 51 53 58 64 65 99 98 99 96 82 79 76 81 93 132 127 119 Avg Prop Armor Cover (%) 10 | . . . . . . . . 4 . . . 17 . . . 16 15 10 8 11 . 10 . 5 . . . . 16 . . 8 Naked Turns . | . . . . . . . . . . . . . . . . . . . . . . . . . . . . . . . . . Heaviest Build 191 | 14 34 30 64 64 64 63 68 68 66 65 65 66 64 63 60 61 62 64 69 87 81 90 75 104 99 102 172 191 183 172 164 188 Greatest Support 320 | 40 40 40 83 83 83 83 85 85 82 80 82 82 48 48 48 48 84 99 119 138 138 220 220 220 96 100 128 157 320 320 320 291 Greatest Overweight (x) 8 | . . . . . . . 1 1 1 1 . 2 2 1 1 2 2 . 5 . . 1 . 4 1 1 1 1 2 . . 8 Average Overweight (x) . | . . . . . . . . . . . . 1 1 1 1 1 1 . . . . . . . . . . 1 . . . . Largest Inventory Capacity 30 | 8 15 15 20 20 20 20 20 20 20 20 20 20 20 20 20 20 20 20 20 20 20 20 20 20 20 20 30 30 30 30 30 30 Average Capacity 21 | 6 14 14 19 20 20 20 20 20 20 20 20 20 20 20 20 20 20 20 20 20 20 20 20 20 20 20 27 30 30 30 30 29 Most Carried 30 | 4 15 15 20 20 20 20 20 20 20 20 20 20 20 20 20 20 20 20 20 20 20 20 20 20 20 20 30 30 30 30 30 30 Average Carried 20 | 2 6 14 19 19 19 20 19 19 19 19 19 19 20 19 19 19 19 19 19 19 19 19 20 19 20 19 26 29 29 29 29 25 Final Capacity 30 | 8 15 15 20 20 20 20 20 20 20 20 20 20 20 20 20 20 20 20 20 20 20 20 20 20 20 20 30 30 30 30 30 30 Final Carried 30 | 3 15 15 20 20 20 20 20 19 20 20 20 20 20 19 20 20 20 20 20 20 20 20 20 20 20 20 30 30 29 30 29 17 Class Distribution -------------------- 18% | Mutant 16% | Gladiator 16% | Scavenger-Gladiator 12% | Scavenger-Gunner 9% | Hauler-Mutant 8% | Scavenger-Mutant 6% | Scientist-Gladiator 3% | Commander-Mutant Dominant Class ---------------- Mutant | -10/Materials Mutant | -10/Mines Mutant | -9/Materials Mutant | -9/Mines Mutant | -9/Exiles Mutant | -8/Mines Gladiator | -8/Materials Gladiator | -8/Garrison Scavenger-Gladiator | -8/Materials Scavenger-Gladiator | -8/Garrison Scavenger-Gladiator | -8/Materials Gladiator | -7/Factory Scavenger-Gladiator | -7/Waste Scavenger-Gladiator | -7/Factory Scientist-Gladiator | -7/Lower Caves Scientist-Gladiator | -7/Lower Caves Scavenger-Gladiator | -7/Data Miner Scavenger-Gladiator | -6/Proximity Caves Scavenger-Mutant | -6/Factory Scavenger-Gunner | -6/Waste Scavenger-Gunner | -6/Factory Scavenger-Gunner | -6/Garrison Gladiator | -6/Factory Gladiator | -6/Garrison Scavenger-Skirmisher | -6/Factory Mutant | -6/DSF Hauler-Mutant | -5/Factory Hauler-Mutant | -5/Extension Hauler-Mutant | -5/Cetus Commander-Mutant | -5/Archives Hauler-Mutant | -5/Hub_04(d) Scavenger-Mutant | -4/Factory Resources | -11 -10 -10 -9 -9 -9 -8 -8 -8 -8 -8 -8 -7 -7 -7 -7 -7 -7 -6 -6 -6 -6 -6 -6 -6 -6 -6 -5 -5 -5 -5 -5 -4 ----------- Run | Yrd Mat Min Mat Min Exi Min Mat Gar Mat Gar Mat Fac Was Fac Low Low Dat Pro Fac Was Fac Gar Fac Gar Fac DSF Fac Ext Cet Arc Hub Fac Matter Collected 8231 | 175 365 232 468 . 20 88 513 365 202 282 351 408 24 43 82 10 202 135 58 297 135 716 . 1028 . 276 123 645 311 213 . 464 Remotely . | . . . . . . . . . . . . . . . . . . . . . . . . . . . . . . . . . Salvage Created 19870 | 45 456 209 1200 . . 162 1558 1533 676 976 601 571 . 26 94 20 376 535 73 221 869 1678 . 2389 . 424 610 2162 494 322 . 1590 Parts 919 | 2 28 9 54 . . 21 70 80 32 50 26 38 . 2 1 . 17 20 8 2 33 73 . 97 . 19 25 96 30 18 . 68 Haulers Intercepted 12 | . 1 . 4 . . . 2 . 3 . 1 . . . . . . . . . . . . . . . 1 . . . . . Recyclers Shooed . | . . . . . . . . . . . . . . . . . . . . . . . . . . . . . . . . . Parts Field Recycled . | . . . . . . . . . . . . . . . . . . . . . . . . . . . . . . . . . Retrieved Matter . | . . . . . . . . . . . . . . . . . . . . . . . . . . . . . . . . . Parts Self-Destructed 20 | . . . . . . . . . . . . . . . 5 11 . 4 . . . . . . . . . . . . . . Prevented 11 | . . . . . . . . . . . . . . . 3 . . 8 . . . . . . . . . . . . . . Parts Restored . | . . . . . . . . . . . . . . . . . . . . . . . . . . . . . . . . . Kills | -11 -10 -10 -9 -9 -9 -8 -8 -8 -8 -8 -8 -7 -7 -7 -7 -7 -7 -6 -6 -6 -6 -6 -6 -6 -6 -6 -5 -5 -5 -5 -5 -4 ------- Run | Yrd Mat Min Mat Min Exi Min Mat Gar Mat Gar Mat Fac Was Fac Low Low Dat Pro Fac Was Fac Gar Fac Gar Fac DSF Fac Ext Cet Arc Hub Fac Combat Hostiles Destroyed 324 | . 8 5 23 . . 9 24 32 9 37 8 8 . . . 1 4 10 . . 14 36 . 37 . 8 5 20 5 . . 21 Melee 108 | . . . 7 . . 1 10 13 6 19 5 7 . . . 1 4 . . . . . . 5 . 4 5 5 . . . 16 Guns 58 | . 8 5 4 . . . . . . . . . . . . . . . . . 13 25 . 3 . . . . . . . . Cannons 18 | . . . 6 . . . . . . . . . . . . . . . . . . . . 8 . 4 . . . . . . AOE 86 | . . . . . . 8 9 14 2 14 . . . . . . . 7 . . . 9 . 10 . . . 11 . . . 2 Classes Destroyed 19 | 1 6 1 3 . . . 3 . . 1 . . . . . . . 1 . . . 2 . . . . . . . 1 . . Worker 28 | . 3 . 4 . . 2 3 . 3 . 4 2 . . . . . . 2 . . . . . . . 1 4 . . . . Builder 19 | . . . 5 . . . 1 . 2 . 3 1 . 1 . . . . . . 1 . . . . . 1 4 . . . . Tunneler 9 | 2 1 1 1 . . . . . . . . . . . . . . . 1 . . . . . . . . 3 . . . . Hauler 12 | . 1 . 4 . . . 2 . 3 . 1 . . . . . . . . . . . . . . . 1 . . . . . Recycler 12 | . 1 . 1 . . . 1 . . . . 2 . . . . . . . . . . . . . . 1 5 . . . 1 Mechanic 1 | . . . . . . . 1 . . . . . . . . . . . . . . . . . . . . . . . . . Operator 10 | . . . . . . . . . . . . . . . . . . . . . . . . . . . . . . 9 . 1 Watcher 15 | . 1 . 2 . . . 4 . 1 . 1 1 . . . . . . . . 3 . . 1 . . . . 1 . . . Swarmer 87 | . 5 . 6 . . 9 3 14 . 18 . 3 . . . 1 . 3 . . 3 12 . 3 . . . 7 . . . . Cutter 2 | . . . . . . . . . . . . . . . . . . . . . . 2 . . . . . . . . . . Grunt 132 | . 3 4 10 . . . 17 14 8 10 2 2 . . . . . 3 . . 7 11 . 21 . 5 1 2 . . . 12 Brawler 9 | . . . 2 . . . 1 . . . . . . . . . . 2 . . . . . 1 . . . 3 . . . . Duelist 5 | . . . . . . . . . . . . . . . . . . 1 . . 1 . . 3 . . . . . . . . Sentry 45 | . . . 5 . . . 2 4 1 6 5 1 . . . . . 1 . . 1 6 . 6 . . 2 3 . . . 2 Hunter 10 | . . . . . . . 1 . . . 1 . . . . . . . . . . 1 . . . 1 1 3 . . . 2 Programmer 16 | . . . . . . . . . . 3 . 2 . . . . . . . . 1 3 . 2 . . 1 . . . . 4 Heavy 4 | . . . . . . . 1 . . . . . . . . . . . . . 1 . . . . 2 . . . . . . Behemoth 5 | . . . . . . . . . . . . . . . . . . . . . . 1 . 1 . . . 2 . . . 1 Cetus Guard 5 | . . . . . . . . . . . . . . . . . . . . . . . . . . . . . 5 . . . Enhanced Grunt 4 | . . . . . . . . . . . . . . . . . 4 . . . . . . . . . . . . . . . Packrat 1 | . . . . . . . . . . . . . . . 1 . . . . . . . . . . . . . . . . . Assembled 1 | . . 1 . . . . . . . . . . . . . . . . . . . . . . . . . . . . . . Best Kill Streak 11 | 1 5 3 8 . . 4 11 10 4 8 3 5 . 1 . 1 2 7 1 . 4 7 . 9 . 3 2 10 4 2 . 3 Combat Bots Only 10 | . 3 3 3 . . 4 8 10 3 8 2 3 . . . 1 2 7 . . 3 7 . 9 . 3 2 6 3 . . 3 Max Kills in Single Turn 5 | 1 2 1 1 . . 3 2 4 3 4 1 1 . 1 1 1 1 5 1 . 2 3 . 3 . 1 1 5 1 1 . 1 Gunslinging 1 | . . . . . . . . . . . . . . . . . . . . . 1 1 . . . . . . . . . . Exploded 5 | . . . . . . 3 2 4 2 4 . . . . . . . 5 . . . 2 . 3 . . . 4 . . . 1 Melee 1 | . . . 1 . . 1 1 1 1 1 1 1 . . . 1 1 . . . . . . 1 . 1 1 1 . . . 1 Uniques/NPCs Destroyed 1 | . . . . . . . . . . . . . . . . . . . . . . . . . . . . . 1 . . . A7 (-5/Cetus) Combat | -11 -10 -10 -9 -9 -9 -8 -8 -8 -8 -8 -8 -7 -7 -7 -7 -7 -7 -6 -6 -6 -6 -6 -6 -6 -6 -6 -5 -5 -5 -5 -5 -4 -------- Run | Yrd Mat Min Mat Min Exi Min Mat Gar Mat Gar Mat Fac Was Fac Low Low Dat Pro Fac Was Fac Gar Fac Gar Fac DSF Fac Ext Cet Arc Hub Fac Hostile Shots Fired 2316 | . 41 11 129 . . 28 103 132 65 147 40 82 . . . . 50 17 8 . 36 253 4 426 . 79 53 157 10 22 19 404 Missed 655 | . 14 5 30 . . 6 33 35 13 32 12 29 . . . . 14 7 5 . 12 99 1 134 . 17 18 44 3 4 5 83 Hits 1661 | . 27 6 99 . . 22 70 97 52 115 28 53 . . . . 36 10 3 . 24 154 3 292 . 62 35 113 7 18 14 321 Melee 25 | . . 2 6 . . . 1 . 5 . . . . . . . . 1 . . . 1 . 9 . . . . . . . . Projectile 1636 | . 27 4 93 . . 22 69 97 47 115 28 53 . . . . 36 9 3 . 24 153 3 283 . 62 35 113 7 18 14 321 AOE 7 | . . . . . . . . . . . . . . . . . . . . . . 2 . 1 . . 1 . . . . 3 Critical Strikes 67 | . . . 1 . . . 4 3 4 . 1 1 . . . . . 1 . . . 1 . 14 . 2 2 11 . . . 22 Actively Blocked 1 | . . . . . . . . . 1 . . . . . . . . . . . . . . . . . . . . . . . Part Disruptions 4 | . . . . . . . . . . . . . . . . . . . . . . . . . . . . . . . . 4 Actively Blocked 3 | . . . . . . . . . . . . . . . . . . . . . . . . . . . . . . . . 3 Damage Taken 30030 | . 234 78 1190 . . 240 1424 1228 1114 1573 359 640 . 40 . 21 1508 194 229 . 554 1815 57 4830 . 1219 706 2425 135 490 596 7131 Core 2919 | . 55 . 117 . . 32 76 68 106 227 46 109 . . . . 507 . 98 . 54 143 18 252 . 35 60 135 27 . 88 666 Absorbed by Shields 351 | . . . . . . . . 18 . . 63 . . . . . . . . . . . . . . 16 . 148 106 . . . Reduced by Siege Mode 9 | . . . . . . . . . . . . . . . . . . . . . . . . . . . . . . . . 9 Redirected to Shielding 99 | . . . . . . . . . 42 57 . . . . . . . . . . . . . . . . . . . . . . Ignored by Resistances 126 | . . . . . . . . . . 7 . . . . . . 119 . . . . . . . . . . . . . . . Regen/Repaired (Parts) 1090 | . . . . . . . . . . . . . 141 27 . 1 . . . . . . . 180 . . . . 46 53 . 642 Core Remaining (%) 50 | 100 . 78 . . . 62 . . . . 4 . . . . . . 12 . . . . . . . 29 . . . . 69 . Volleys Fired 473 | 5 35 16 36 . . 6 25 21 5 12 . 1 . . . . . 18 2 5 32 101 . 106 . 14 . 14 8 . . 11 Largest 4 | 2 2 2 2 . . 1 1 2 1 2 . 1 . . . . . 1 2 4 4 4 . 4 . 4 . 3 2 . . 1 Hottest 366 | 40 40 40 57 . . 33 33 66 36 72 . 5 . . . . . 36 75 324 324 324 . 355 . 366 . 135 92 . . 105 Shots Fired 978 | 10 70 32 72 . . 6 25 41 5 18 . 1 . . . . . 18 3 20 106 317 . 142 1 41 . 28 11 . . 11 Gun 637 | 10 70 32 36 . . . . . . . . . . . . . . . . 20 100 303 . 66 . . . . . . . . Cannon 145 | . . . 36 . . . . . . . . . . . . . . . . . 3 2 . 59 1 41 . . . . . 3 Launcher 195 | . . . . . . 6 25 41 5 18 . . . . . . . 18 3 . 3 12 . 17 . . . 28 11 . . 8 Special 1 | . . . . . . . . . . . . 1 . . . . . . . . . . . . . . . . . . . . Kinetic 236 | 10 70 32 72 . . . . . . . . . . . . . . . . . . 25 . 22 . 5 . . . . . . Thermal 494 | . . . . . . . . . . . . . . . . . . . . 20 103 279 . 53 . 36 . . . . . 3 Explosive 17 | . . . . . . . . . . 12 . . . . . . . . . . . . . . . . . 5 . . . . Electromagnetic 230 | . . . . . . 6 25 41 5 6 . . . . . . . 18 3 . 3 13 . 67 1 . . 23 11 . . 8 Robot Hit Streak 23 | 3 15 6 9 . . 3 3 12 1 3 . 3 . . . . . 6 7 10 10 12 . 23 . 4 . 15 . . . 8 Robot Miss Streak 10 | 2 4 2 3 . . 4 2 3 3 4 . . . . . . . 2 . 1 3 5 . 10 . 4 . 1 1 . . . Penetration Max . | . . . . . . . . . . . . . . . . . . . . . . . . . . . . . . . . . Secondary Targets 10 | . 1 . . . . . . . . . . . . . . . . . . . 2 6 . 1 . . . . . . . . Max Gunslinging Chain 1 | . 1 . . . . . . . . . . . . . . . . . . . 1 1 . 1 . . . . . . . . Shots Hit Robots 990 | 5 38 20 92 . . 3 62 49 38 63 28 24 . 2 1 1 24 8 3 11 62 139 . 114 . 30 20 50 9 15 . 79 Core Hits 587 | 2 20 9 28 . . 11 42 43 15 33 7 13 . . 1 . 12 20 3 2 28 84 1 82 . 14 8 54 14 5 . 36 Critical Kills 14 | . 1 1 2 . . . 4 1 2 2 1 . . . . . . . . . . . . . . . . . . . . . Critical Parts Destroyed 32 | . . . 5 . . 1 7 2 4 4 8 1 . . . . . . . . . . . . . . . . . . . . Critical Strikes 115 | . 1 1 8 . . 1 11 4 6 9 11 3 . . . . 3 . . . 10 13 . 4 . 3 7 6 1 1 . 12 Burn 25 | . . . . . . . . . . . . . . . . . . . . . 10 13 . 2 . . . . . . . . Destroy 2 | . 1 1 . . . . . . . . . . . . . . . . . . . . . . . . . . . . . . Corrupt 1 | . . . . . . . . . . . . . . . . . . . . . . . . 1 . . . . . . . . Smash 45 | . . . 8 . . 1 11 3 6 6 9 1 . . . . . . . . . . . . . . . . . . . . Sever 32 | . . . . . . . . . . 2 2 1 . . . . 1 . . . . . . 1 . 3 7 3 1 1 . 10 Impale 10 | . . . . . . . . 1 . 1 . 1 . . . . 2 . . . . . . . . . . 3 . . . 2 Melee Attacks 776 | . . . 63 . . 1 82 60 42 92 52 42 . 3 2 2 39 . 5 . . . . 31 4 22 53 39 9 19 5 109 Impact 298 | . . . 63 . . 1 54 27 33 56 37 4 . . . . . . . . . . . . . . . 9 . . . 14 Slashing 287 | . . . . . . . 1 . . 28 15 20 . 1 1 1 4 . . . . . . 31 4 22 53 16 8 18 5 59 Piercing 191 | . . . . . . . 27 33 9 8 . 18 . 2 1 1 35 . 5 . . . . . . . . 14 1 1 . 36 Sneak Attacks 104 | . . . 11 . . . 11 2 13 . 11 9 . 2 1 . 1 . 2 . . . . 1 . 2 6 3 9 14 . 6 Combat Hostiles 6 | . . . . . . . . . . . 1 1 . . . . . . . . . . . 1 . . . . . . . 3 Follow-up Attacks 92 | . . . 8 . . . 8 2 6 14 3 6 . . . . 4 . . . . . . 2 . 3 1 11 1 1 . 22 Damage Inflicted 46066 | 65 497 263 2981 . . 292 3674 2702 2591 3454 1683 997 . 137 51 31 744 851 164 276 1798 4054 18 4893 . 1654 1433 4197 1336 1468 . 3762 Guns 7707 | 65 497 263 312 . . . . . . . . . . . . . . . . 276 1575 3452 . 1267 . . . . . . . . Cannons 2752 | . . . 560 . . . . . . . . . . . . . . . . . . . . 1336 . 856 . . . . . . Explosions 11998 | . . . . . . 246 1199 1583 453 1158 . . . . . . . 851 28 . 186 602 . 1759 . . . 2738 840 . . 355 Melee 23481 | . . . 2109 . . 46 2475 1119 2138 2289 1683 997 . 137 51 31 744 . 136 . . . . 500 . 798 1433 1431 496 1468 . 3400 Ramming 128 | . . . . . . . . . . 7 . . . . . . . . . . 37 . 18 31 . . . 28 . . . 7 Kinetic 2253 | 65 497 263 872 . . . . . . . . . . . . . . . . . . 290 . 188 . 78 . . . . . . Thermal 8291 | . . . . . . 37 255 137 192 . . . . . . . . 251 . 276 1575 3162 . 1609 . 778 . 19 . . . . Explosive 1428 | . . . . . . . . . . 1110 . . . . . . . . . . . . . . . . . 318 . . . . Electromagnetic 10485 | . . . . . . 209 944 1446 261 48 . . . . . . . 600 28 . 186 602 . 2565 . . . 2401 840 . . 355 Impact 9527 | . . . 2109 . . 46 1810 588 1805 1196 1244 50 . . . . . . . . . . . . . . . 230 . . . 449 Slashing 9395 | . . . . . . . 35 . . 909 439 639 . . . . 128 . . . . . . 500 . 798 1433 671 438 1468 . 1937 Piercing 4559 | . . . . . . . 630 531 333 184 . 308 . 137 51 31 616 . 136 . . . . . . . . 530 58 . . 1014 Highest Corruption 77 | . . . . . . . 2 4 4 15 18 4 4 4 1 1 1 10 1 1 5 5 5 77 77 77 1 3 45 45 40 16 Average Corruption 13 | . . . . . . . 2 3 4 12 15 3 4 1 1 1 1 3 1 1 4 5 5 34 77 77 1 2 37 32 24 11 Corruption Purged 25 | . . . . . . . . . . . . . . 4 . . . . . . . . . . . . . . . 21 . . Corruption Blocked . | . . . . . . . . . . . . . . . . . . . . . . . . . . . . . . . . . Effects 560 | . . . . . . . 19 29 16 60 41 2 5 1 3 5 1 9 . 6 24 52 2 134 10 38 . 24 25 37 10 7 Message Errors 135 | . . . . . . . 6 10 5 10 13 . 2 1 2 3 . 4 . 3 5 5 . 34 4 7 . 7 4 6 1 3 Matter Fused 124 | . . . . . . . 3 7 4 13 11 2 2 . 1 1 . . . 1 5 9 1 30 1 4 . 6 6 13 2 2 Heat Flow Errors 63 | . . . . . . . 1 3 2 13 4 . 1 . . . 1 . . . 2 6 1 11 2 6 . 1 3 4 2 . Energy Discharges 82 | . . . . . . . 5 3 1 14 3 . . . . . . 2 . 1 3 15 . 17 . 5 . . 5 6 2 . Parts Rejected 4 | . . . . . . . . . . . 1 . . . . . . . . . . . . 3 . . . . . . . . Parts Fused 13 | . . . . . . . . 1 2 2 1 . . . . . . . . . . 1 . . . 2 . 2 . 2 . . Data Loss (minor) 72 | . . . . . . . 4 4 1 2 5 . . . . 1 . 3 . 1 6 9 . 14 2 3 . 6 2 5 2 2 Data Loss (major) 23 | . . . . . . . . 1 1 4 3 . . . . . . . . . . 3 . 6 . 2 . 1 2 . . . Misfires 6 | . . . . . . . . . . . . . . . . . . . . . 1 1 . 1 1 1 . . 1 . . . Alerts 8 | . . . . . . . . . . 2 . . . . . . . . . . . . . 2 . . . 1 2 1 . . Misdirections 6 | . . . . . . . . . . . . . . . . . . . . . . . . 5 . . . . . . 1 . Weapon Failures 24 | . . . . . . . . . . . . . . . . . . . . . 2 3 . 11 . 8 . . . . . . Overload Shots . | . . . . . . . . . . . . . . . . . . . . . . . . . . . . . . . . . Overflow Damage 4982 | . . . 640 . . 46 630 136 649 496 769 98 . 67 . 27 22 . 86 . . . . 11 . 36 205 183 28 597 . 256 Projectiles 47 | . . . 22 . . . . . . . . . . . . . . . . . . . . . . 25 . . . . . . Explosions 278 | . . . . . . . . . . 138 . . . . . . . . 86 . . . . . . . . 15 28 . . 11 Melee 4657 | . . . 618 . . 46 630 136 649 358 769 98 . 67 . 27 22 . . . . . . 11 . 11 205 168 . 597 . 245 Knockbacks 31 | . . . 7 . . . 4 1 2 2 4 . . . . . . . . . . . 1 1 . . . 1 . . . 8 Impact 27 | . . . 4 . . . 4 1 2 1 4 . . . . . . . . . . . 1 1 . . . 1 . . . 8 Kinetic 3 | . . . 3 . . . . . . . . . . . . . . . . . . . . . . . . . . . . . Secondary 1 | . . . . . . . . . . 1 . . . . . . . . . . . . . . . . . . . . . . Self-Inflicted Damage 844 | . . . . . . 20 10 14 14 136 . . . . . . . 10 188 . . 61 . 201 . . . 78 25 . . 87 Shots 45 | . . . . . . 2 1 1 1 6 . . . . . . . 1 5 . . 5 . 13 . . . 5 2 . . 3 Rammed 7 | . . . . . . . . . . 1 . . . . . . . . . . . . 1 4 . . . . . . . 1 Targets Rammed 12 | . . . . . . . . . . 1 . . . . . . . . . . 4 . 1 4 . . . 1 . . . 1 Kicked 5 | . . . . . . . . . . . . . . . . . . . . . 4 . . . . . . 1 . . . . Crushed . | . . . . . . . . . . . . . . . . . . . . . . . . . . . . . . . . . Highest Temperature 540 | . . . 48 . . . 247 226 226 274 268 . 270 . . . 144 9 7 159 422 540 210 493 195 362 . 170 251 231 227 102 Average Temperature 81 | . . . 14 . . . 42 48 71 95 104 . 148 . . . 74 9 4 79 104 124 45 71 90 92 . 40 112 99 111 45 Received Heat Transfer 6533 | . 48 24 342 . . . 531 474 378 351 133 57 . . . 9 . 54 . . 126 423 27 1603 . 351 108 409 . 72 27 986 Effects 18 | . . . . . . . . . . . . . . . . . . . . . 1 11 . 6 . . . . . . . . Shutdowns 5 | . . . . . . . . . . . . . . . . . . . . . 1 4 . . . . . . . . . . Energy Bleed 3 | . . . . . . . . . . . . . . . . . . . . . . 1 . 2 . . . . . . . . Interference 6 | . . . . . . . . . . . . . . . . . . . . . . 3 . 3 . . . . . . . . Matter Decay 1 | . . . . . . . . . . . . . . . . . . . . . . . . 1 . . . . . . . . Damage (minor) 1 | . . . . . . . . . . . . . . . . . . . . . . 1 . . . . . . . . . . Damage (major) 2 | . . . . . . . . . . . . . . . . . . . . . . 2 . . . . . . . . . . Siege Activations 1 | . . . . . . . . . . . . . . . . . . . . . . . . . . . . . . . . 1 Total Turns 4 | . . . . . . . . . . . . . . . . . . . . . . . . . . . . . . . . 4 Longest Duration 4 | . . . . . . . . . . . . . . . . . . . . . . . . . . . . . . . . 4 Martial Activations . | . . . . . . . . . . . . . . . . . . . . . . . . . . . . . . . . . Shielding Activations . | . . . . . . . . . . . . . . . . . . . . . . . . . . . . . . . . . Robots Disrupted 1 | . . . . . . . . . . . . . . . . . . 1 . . . . . . . . . . . . . . Combat Hostiles 1 | . . . . . . . . . . . . . . . . . . 1 . . . . . . . . . . . . . . Robots Corrupted 68 | . . . 12 . . . 7 8 4 4 6 1 . . . . . 3 . . . 1 . 10 . . . 4 5 . . 3 Combat Hostiles 51 | . . . 6 . . . 5 5 1 4 3 1 . . . . . 3 . . . 1 . 10 . . . 4 5 . . 3 Parts Fried 113 | . . . 23 . . . 9 7 9 9 8 1 . . . . . . . . . 2 . 22 . . . 18 3 . . 2 Impact Corruptions 100 | . . . 26 . . 1 13 4 17 13 22 1 . . . . . . . . . . . . . . . 1 . . . 2 Robots Melted 4 | . . . . . . . . . . . . . . . . . . . . . 1 1 . 2 . . . . . . . . Combat Hostiles 3 | . . . . . . . . . . . . . . . . . . . . . 1 1 . 1 . . . . . . . . Parts Melted 28 | . . . . . . . . . . . . . . . . . . 1 . . 6 15 . 6 . . . . . . . . Heat Transferred 13439 | . . . . . . 50 250 300 100 . . . . . . . . 250 . 407 3034 5567 . 2691 . 740 . 50 . . . . Parts Sabotaged 3 | . . . . . . . . . . . . . . . . . . . . . . 3 . . . . . . . . . . Parts Stolen . | . . . . . . . . . . . . . . . . . . . . . . . . . . . . . . . . . Parts Stripped . | . . . . . . . . . . . . . . . . . . . . . . . . . . . . . . . . . Power Chain Reactions 25 | . . . . . . 2 5 6 1 . . . . . . . . 3 . . . 1 . 4 . . . 2 . . . 1 Alert | -11 -10 -10 -9 -9 -9 -8 -8 -8 -8 -8 -8 -7 -7 -7 -7 -7 -7 -6 -6 -6 -6 -6 -6 -6 -6 -6 -5 -5 -5 -5 -5 -4 ------- Run | Yrd Mat Min Mat Min Exi Min Mat Gar Mat Gar Mat Fac Was Fac Low Low Dat Pro Fac Was Fac Gar Fac Gar Fac DSF Fac Ext Cet Arc Hub Fac Maximum Alert Level 5 | . . . 1 . . 1 1 4 3 5 3 2 . . . . . . . . . 5 3 5 4 3 2 4 3 2 1 1 Low Security (%) 34 | 100 100 100 54 100 . 54 89 . . . . . 100 100 . . . . 100 100 100 2 . . . . . 13 . 12 36 91 Level 1 15 | . . . 45 . . 45 10 11 . . . 76 . . . . . . . . . 11 . . . . 43 44 . 83 63 8 Level 2 9 | . . . . . . . . 9 . 13 . 23 . . . . . . . . . 13 . 3 . . 56 24 82 4 . . Level 3 20 | . . . . . . . . 39 100 25 100 . . . . . . . . . . 17 100 26 . 100 . 10 17 . . . Level 4 10 | . . . . . . . . 39 . 26 . . . . . . . . . . . 39 . 15 100 . . 5 . . . . Level 5 9 | . . . . . . . . . . 33 . . . . . . . . . . . 15 . 54 . . . . . . . . High Security . | . . . . . . . . . . . . . . . . . . . . . . . . . . . . . . . . . Max Security . | . . . . . . . . . . . . . . . . . . . . . . . . . . . . . . . . . Sterilizations 1 | . . . . . . . . . . . . . . . . . . . . . . . . . . 1 . . . . . . Peak Influence 2341 | 5 94 50 267 88 . 264 334 1547 933 2064 1026 429 144 47 . . . . 58 13 182 1705 894 2341 1228 1021 535 1113 748 403 338 223 Initial 1228 | . . 9 . 88 . . 71 217 754 587 1006 409 144 47 . . . . 58 13 . 69 894 611 1228 820 535 175 612 248 54 131 Average 622 | . 36 8 172 32 . 182 71 977 826 1301 958 377 114 8 . . . . 12 . 82 1060 884 1501 1193 933 419 478 662 293 216 162 Influence Increases 15478 | 10 243 85 734 . . 374 775 1410 682 1567 314 308 44 15 264 279 . 285 112 . 487 1726 . 1960 24 211 236 1651 276 265 475 666 Destroy 0b10 Robot/C 7820 | . 160 80 460 . . 280 480 700 360 760 160 160 . . 120 160 . 200 . . 280 800 . 760 . 160 100 840 160 80 140 420 Destroy 0b10 Robot/NC 575 | 10 35 5 85 . . 10 60 15 45 . 45 30 . 5 . . . . 15 . 20 . . 10 . . 20 95 10 45 5 10 Destroy Leader 1184 | . 34 . 132 . . 40 122 40 108 30 74 52 . . 20 20 . 10 . . 76 40 . 80 . 40 42 94 . . 30 100 Allied During Kill 1160 | . . . . . . 19 . 49 65 4 . . . 3 124 99 . . . . . 16 . 14 . . . 368 106 125 155 13 Successful Hack 180 | . 12 . 7 . . . . 21 . 7 9 12 . 7 . . . . . . 17 14 . . 20 . . 7 . . 9 38 Select Force Hacks 50 | . . . . . . . . . . . . . . . . . . . . . . . . . . . . . . . 50 . Disable Machine 390 | . . . . . . . 15 30 . 75 15 15 . . . . . . 60 . . 15 . 30 . . 30 60 . 15 15 15 Anti-Garrison Action 2550 | . . . . . . . . 450 . 500 . . . . . . . . . . . 650 . 950 . . . . . . . . Destroy Structure 714 | . 2 . 5 . . 10 23 75 14 101 11 9 44 . . . . . 37 . 4 101 . 71 4 11 44 82 . . 26 40 Partial Spotted 15 | . . . . . . . . . . . . . . . . . . . . . . . . . . . . . . . . 15 Lose Combat Pursuer 840 | . . . 45 . . 15 75 30 90 90 . 30 . . . . . 75 . . 90 90 . 45 . . . 105 . . 45 15 Influence Decreases 15365 | 10 219 109 506 228 . 190 625 197 1325 407 1478 795 389 83 123 414 6 192 167 38 388 120 831 493 1193 362 898 915 751 728 363 822 Entered New Map 7763 | . . 15 . 140 . . 113 117 793 317 1058 491 269 21 . 28 6 . 35 25 . 30 811 263 1113 352 486 184 483 372 103 138 Time Decay 6202 | 10 219 94 466 88 . 170 502 . 422 . 410 294 120 62 103 336 . 182 112 13 388 . 20 . 80 . 392 571 238 356 90 464 Lost Part 830 | . . . 40 . . . 10 60 30 50 10 10 . . . . . 10 20 . . 90 . 210 . 10 20 20 10 . 10 220 Lost Ally 570 | . . . . . . 20 . 20 80 40 . . . . 20 50 . . . . . . . 20 . . . 140 20 . 160 . Squads Dispatched 39 | . 1 . 2 1 . . 4 . 2 . 1 3 . 1 . . . . 2 . 2 . 1 . . 1 3 5 . . 3 7 Investigation 12 | . 1 . . 1 . . 2 . . . . 2 . . . . . . . . . . . . . . . 2 . . 2 2 Extermination 8 | . . . . . . . . . . . . 1 . . . . . . 1 . 1 . . . . . 2 . . . . 3 Reinforcement 16 | . . . 2 . . . 2 . 1 . 1 . . 1 . . . . 1 . 1 . 1 . . 1 1 1 . . 1 2 Assault 3 | . . . . . . . . . 1 . . . . . . . . . . . . . . . . . . 2 . . . . Garrison . | . . . . . . . . . . . . . . . . . . . . . . . . . . . . . . . . . Intercept . | . . . . . . . . . . . . . . . . . . . . . . . . . . . . . . . . . Searches Triggered . | . . . . . . . . . . . . . . . . . . . . . . . . . . . . . . . . . Construction Impeded 4 | . . . . . . . . . . . 1 . . 1 . . . . . . . . . . . . . 1 . . . 1 Haulers Reinforced 1 | . . . . . . . . . . . . . . . . . . . . . . . . . . . 1 . . . . . Active Scanning Responses . | . . . . . . . . . . . . . . . . . . . . . . . . . . . . . . . . . Cargo Convoy Interrupts . | . . . . . . . . . . . . . . . . . . . . . . . . . . . . . . . . . Stealth | -11 -10 -10 -9 -9 -9 -8 -8 -8 -8 -8 -8 -7 -7 -7 -7 -7 -7 -6 -6 -6 -6 -6 -6 -6 -6 -6 -5 -5 -5 -5 -5 -4 --------- Run | Yrd Mat Min Mat Min Exi Min Mat Gar Mat Gar Mat Fac Was Fac Low Low Dat Pro Fac Was Fac Gar Fac Gar Fac DSF Fac Ext Cet Arc Hub Fac Distress Signals 26 | . 1 . 2 . . . 3 . 3 . . . . . . . . . . . 3 . . . . . 2 6 2 . 1 3 Communications Jammed 125 | . . . . . . . 118 . . . . . . . . . . . . . . . . . . . . . . . 7 . Distress Signals 115 | . . . . . . . 108 . . . . . . . . . . . . . . . . . . . . . . . 7 . Times Spotted 531 | . 17 4 43 . . 14 49 28 31 40 10 14 5 1 3 5 4 12 3 . 27 45 3 49 . 12 7 46 9 8 11 31 Peak Tracking Total 10 | . 5 1 5 . . 4 7 4 6 5 2 4 4 1 3 3 4 6 2 . 5 7 2 9 . 4 3 10 5 3 6 6 Tactical Retreats 38 | . . . 3 . . 1 4 2 4 5 . 1 . . . . . 2 . . 2 5 . 1 . . . 5 . . 2 1 Traps | -11 -10 -10 -9 -9 -9 -8 -8 -8 -8 -8 -8 -7 -7 -7 -7 -7 -7 -6 -6 -6 -6 -6 -6 -6 -6 -6 -5 -5 -5 -5 -5 -4 ------- Run | Yrd Mat Min Mat Min Exi Min Mat Gar Mat Gar Mat Fac Was Fac Low Low Dat Pro Fac Was Fac Gar Fac Gar Fac DSF Fac Ext Cet Arc Hub Fac Traps Triggered 33 | . . . . . . . 5 2 . . . 2 . 1 . . . . 1 . 2 5 . 8 . 3 . 3 . . . 1 Indirectly 10 | . . . . . . . 1 . . . . . . . . . . . . . . 3 . 5 . . . 1 . . . . Trap Hack Attempts . | . . . . . . . . . . . . . . . . . . . . . . . . . . . . . . . . . Triggered . | . . . . . . . . . . . . . . . . . . . . . . . . . . . . . . . . . Disarmed . | . . . . . . . . . . . . . . . . . . . . . . . . . . . . . . . . . Reprogrammed . | . . . . . . . . . . . . . . . . . . . . . . . . . . . . . . . . . Reused . | . . . . . . . . . . . . . . . . . . . . . . . . . . . . . . . . . Traps Extracted . | . . . . . . . . . . . . . . . . . . . . . . . . . . . . . . . . . Installed . | . . . . . . . . . . . . . . . . . . . . . . . . . . . . . . . . . Triggered . | . . . . . . . . . . . . . . . . . . . . . . . . . . . . . . . . . Machines | -11 -10 -10 -9 -9 -9 -8 -8 -8 -8 -8 -8 -7 -7 -7 -7 -7 -7 -6 -6 -6 -6 -6 -6 -6 -6 -6 -5 -5 -5 -5 -5 -4 ---------- Run | Yrd Mat Min Mat Min Exi Min Mat Gar Mat Gar Mat Fac Was Fac Low Low Dat Pro Fac Was Fac Gar Fac Gar Fac DSF Fac Ext Cet Arc Hub Fac Machines Disabled 53 | . . . . . . . 1 8 . 9 1 1 . . . . . . 4 . . 9 . 8 . . 2 7 . 1 1 1 Max in Single Turn 2 | . . . . . . . 1 1 . 2 1 1 . . . . . . 2 . . 1 . 2 . . 1 2 . . 1 1 Garrison Relay 22 | . . . . . . . . 6 . 4 . . . . . . . . . . . 8 . 4 . . . . . . . . Phase Generator 1 | . . . . . . . . . . . . . . . . . . . . . . . . 1 . . . . . . . . Network Hub 2 | . . . . . . . . . . . . . . . . . . . . . . . . . . . . . . . 2 . Energy Cycler 1 | . . . . . . . . . . . . . . . . . . . . . . . . . . . . 1 . . . . Machines Repaired . | . . . . . . . . . . . . . . . . . . . . . . . . . . . . . . . . . Machines Dismantled 4 | . . . . . . . . . . . . . . . . . . . . . . . . . . . . 3 . . 1 . Machines Sabotaged 1 | . . . . . . . . . . . . . . . . . . . . . . . . . . . . . . . 1 . Overloaded Fab Kills . | . . . . . . . . . . . . . . . . . . . . . . . . . . . . . . . . . Hacking | -11 -10 -10 -9 -9 -9 -8 -8 -8 -8 -8 -8 -7 -7 -7 -7 -7 -7 -6 -6 -6 -6 -6 -6 -6 -6 -6 -5 -5 -5 -5 -5 -4 --------- Run | Yrd Mat Min Mat Min Exi Min Mat Gar Mat Gar Mat Fac Was Fac Low Low Dat Pro Fac Was Fac Gar Fac Gar Fac DSF Fac Ext Cet Arc Hub Fac Machines Accessed 60 | . 2 . 1 1 2 . 2 2 1 3 6 3 . 2 1 . 4 . 4 . 5 4 1 . 3 . 2 4 . . 2 5 Terminals 38 | . 1 . 1 . . . 1 2 . 3 6 2 . 1 1 . . . 2 . 2 4 . . 3 . . 4 . . 2 3 Fabricators 3 | . . . . . . . . . . . . . . . . . . . 2 . . . . . . . 1 . . . . . Repair Stations 3 | . 1 . . . . . . . . . . . . . . . . . . . . . . . . . . . . . . 2 Recycling Units . | . . . . . . . . . . . . . . . . . . . . . . . . . . . . . . . . . Scanalyzers 4 | . . . . . . . . . . . . 1 . 1 . . . . . . 1 . . . . . 1 . . . . . Garrison Access 5 | . . . . . . . 1 . 1 . . . . . . . . . . . 2 . 1 . . . . . . . . . Total Hacks 162 | . 5 . 2 1 5 . 3 6 1 6 15 8 . 14 1 . 32 . 8 . 9 8 2 . 7 . 3 7 . . 6 13 Successful 86 | . 3 . 1 1 5 . 1 2 1 1 4 1 . 11 1 . 32 . 3 . 2 2 1 . 3 . . 2 . . 4 5 Failed 75 | . 2 . 1 . . . 2 4 . 5 11 6 . 3 . . . . 5 . 7 6 1 . 4 . 3 5 . . 2 8 Catastrophic 21 | . . . . . . . 1 2 . 2 4 . . . . . . . 2 . 1 1 . . 1 . . 2 . . . 5 Database Lockouts 1 | . . . . . . . . . . . . 1 . . . . . . . . . . . . . . . . . . . . Manual 61 | . 5 . 1 . 1 . 1 . . . 14 . . 4 . . . . 5 . 5 . . . 5 . . . 1 . 6 13 Terminals 90 | . 3 . 2 . . . 1 6 . 6 15 5 . 4 1 . . . 3 . 5 8 . . 7 . . 7 . . 6 11 Fabricators 6 | . . . . . . . . . . . . . . . . . . . 5 . . . . . . . 1 . . . . . Repair Stations 4 | . 2 . . . . . . . . . . . . . . . . . . . . . . . . . . . . . . 2 Recycling Units . | . . . . . . . . . . . . . . . . . . . . . . . . . . . . . . . . . Scanalyzers 16 | . . . . . . . . . . . . 3 . 10 . . . . . . 1 . . . . . 2 . . . . . Garrison Access 8 | . . . . . . . 2 . 1 . . . . . . . . . . . 3 . 2 . . . . . . . . . Terminal Hacks 53 | . 1 . 1 1 5 . . 2 . 1 1 . . 1 1 . 32 . . . . 2 . . 2 . . 2 . . 1 . Record 16 | . . . . . 4 . . . . . . . . . 1 . 11 . . . . . . . . . . . . . . . Part Schematic 12 | . 1 . . . . . . . . . . . . . . . 11 . . . . . . . . . . . . . . . Robot Schematic 7 | . . . . . . . . . . . . . . . . . 7 . . . . . . . . . . . . . . . Prototype ID Bank 3 | . . . . . . . . . . . . . . . . . 3 . . . . . . . . . . . . . . . Open Door 6 | . . . . 1 . . . 1 . 1 . . . . . . . . . . . 1 . . . . . 2 . . . . Open DSF 1 | . . . . . . . . . . . . . . . . . . . . . . . . . 1 . . . . . . . Level Access Points 1 | . . . . . . . . . . . . . . . . . . . . . . . . . . . . . . . 1 . Branch Access Points 1 | . . . . . . . . . . . . . . 1 . . . . . . . . . . . . . . . . . . Emergency Access Points 1 | . . . . . . . . 1 . . . . . . . . . . . . . . . . . . . . . . . . Registered Components 1 | . . . 1 . . . . . . . . . . . . . . . . . . . . . . . . . . . . . Zone Layout 2 | . . . . . . . . . . . 1 . . . . . . . . . . . . . 1 . . . . . . . Garrison Registry 1 | . . . . . . . . . . . . . . . . . . . . . . 1 . . . . . . . . . . Proto ID Catalog 1 | . . . . . 1 . . . . . . . . . . . . . . . . . . . . . . . . . . . Fabricator Hacks 3 | . . . . . . . . . . . . . . . . . . . 3 . . . . . . . . . . . . . Load Schematic 2 | . . . . . . . . . . . . . . . . . . . 2 . . . . . . . . . . . . . Build 1 | . . . . . . . . . . . . . . . . . . . 1 . . . . . . . . . . . . . Repair Station Hacks 1 | . 1 . . . . . . . . . . . . . . . . . . . . . . . . . . . . . . . Refit 1 | . 1 . . . . . . . . . . . . . . . . . . . . . . . . . . . . . . . Recycling Unit Hacks . | . . . . . . . . . . . . . . . . . . . . . . . . . . . . . . . . . Scanalyzer 10 | . . . . . . . . . . . . 1 . 9 . . . . . . . . . . . . . . . . . . Insert Component 1 | . . . . . . . . . . . . . . 1 . . . . . . . . . . . . . . . . . . Analyze 1 | . . . . . . . . . . . . . . 1 . . . . . . . . . . . . . . . . . . Retrieve Study 8 | . . . . . . . . . . . . 1 . 7 . . . . . . . . . . . . . . . . . . Garrison Access Hacks 4 | . . . . . . . 1 . 1 . . . . . . . . . . . 1 . 1 . . . . . . . . . Unlock Access 4 | . . . . . . . 1 . 1 . . . . . . . . . . . 1 . 1 . . . . . . . . . Unauthorized Hacks 15 | . 1 . . . . . . . . . 3 . . 1 . . . . . . 1 . . . 1 . . . . . 3 5 Terminals 13 | . 1 . . . . . . . . . 3 . . 1 . . . . . . 1 . . . 1 . . . . . 3 3 Botnet 11 | . 1 . . . . . . . . . 3 . . 1 . . . . . . 1 . . . 1 . . . . . 1 3 Sabotage 2 | . . . . . . . . . . . . . . . . . . . . . . . . . . . . . . . 2 . Fabricators . | . . . . . . . . . . . . . . . . . . . . . . . . . . . . . . . . . Repair Stations 2 | . . . . . . . . . . . . . . . . . . . . . . . . . . . . . . . . 2 Patch 2 | . . . . . . . . . . . . . . . . . . . . . . . . . . . . . . . . 2 Recycling Units . | . . . . . . . . . . . . . . . . . . . . . . . . . . . . . . . . . Scanalyzers . | . . . . . . . . . . . . . . . . . . . . . . . . . . . . . . . . . Garrison Access . | . . . . . . . . . . . . . . . . . . . . . . . . . . . . . . . . . Data Cores Recovered . | . . . . . . . . . . . . . . . . . . . . . . . . . . . . . . . . . Used . | . . . . . . . . . . . . . . . . . . . . . . . . . . . . . . . . . Hacking Detections 40 | . 2 . 1 . . . 2 2 . 3 6 3 . 1 . . . . 3 . 4 2 1 . 2 . 2 2 . . 1 3 Full Trace Events 9 | . 1 . . . . . . 1 . 2 . 2 . . . . . . . . . 2 . . . . . 1 . . . . Feedback Events . | . . . . . . . . . . . . . . . . . . . . . . . . . . . . . . . . . Feedback Blocked . | . . . . . . . . . . . . . . . . . . . . . . . . . . . . . . . . . Robot Schematics Acquired 7 | . . . . . . . . . . . . . . . . . 7 . . . . . . . . . . . . . . . Robots Built . | . . . . . . . . . . . . . . . . . . . . . . . . . . . . . . . . . Authchips . | . . . . . . . . . . . . . . . . . . . . . . . . . . . . . . . . . Time . | . . . . . . . . . . . . . . . . . . . . . . . . . . . . . . . . . Total Robot Build Rating . | . . . . . . . . . . . . . . . . . . . . . . . . . . . . . . . . . Part Schematics Acquired 13 | . 1 . . . . . . . . . . . . 1 . . 11 . . . . . . . . . . . . . . . Parts Built 1 | . . . . . . . . . . . . . . . . . . . 1 . . . . . . . . . . . . . Authchips 1 | . . . . . . . . . . . . . . . . . . . 1 . . . . . . . . . . . . . Time 50 | . . . . . . . . . . . . . . . . . . . 50 . . . . . . . . . . . . . Total Part Build Rating 5 | . . . . . . . . . . . . . . . . . . . 5 . . . . . . . . . . . . . Part Studies Acquired 8 | . . . . . . . . . . . . 1 . 7 . . . . . . . . . . . . . . . . . . Parts Repaired . | . . . . . . . . . . . . . . . . . . . . . . . . . . . . . . . . . Time . | . . . . . . . . . . . . . . . . . . . . . . . . . . . . . . . . . Parts Recycled . | . . . . . . . . . . . . . . . . . . . . . . . . . . . . . . . . . Recycled Matter . | . . . . . . . . . . . . . . . . . . . . . . . . . . . . . . . . . Retrieved Matter . | . . . . . . . . . . . . . . . . . . . . . . . . . . . . . . . . . Retrieved Components . | . . . . . . . . . . . . . . . . . . . . . . . . . . . . . . . . . Parts Scanalyzed 1 | . . . . . . . . . . . . . . 1 . . . . . . . . . . . . . . . . . . Part Schematics Acquired 1 | . . . . . . . . . . . . . . 1 . . . . . . . . . . . . . . . . . . Parts Damaged . | . . . . . . . . . . . . . . . . . . . . . . . . . . . . . . . . . Bothacking | -11 -10 -10 -9 -9 -9 -8 -8 -8 -8 -8 -8 -7 -7 -7 -7 -7 -7 -6 -6 -6 -6 -6 -6 -6 -6 -6 -5 -5 -5 -5 -5 -4 ------------ Run | Yrd Mat Min Mat Min Exi Min Mat Gar Mat Gar Mat Fac Was Fac Low Low Dat Pro Fac Was Fac Gar Fac Gar Fac DSF Fac Ext Cet Arc Hub Fac Used RIF Installer . | . . . . . . . . . . . . . . . . . . . . . . . . . . . . . . . . . Robots Hacked 1 | . . . . . . . . . . . . 1 . . . . . . . . . . . . . . . . . . . . Non-combat 1 | . . . . . . . . . . . . 1 . . . . . . . . . . . . . . . . . . . . Combat . | . . . . . . . . . . . . . . . . . . . . . . . . . . . . . . . . . Robot Hacks Applied 1 | . . . . . . . . . . . . 1 . . . . . . . . . . . . . . . . . . . . find_chute 1 | . . . . . . . . . . . . 1 . . . . . . . . . . . . . . . . . . . . Relay Couplers Released 91 | . . . . . . . . 24 . 17 . . . . . . . . . . . 34 . 16 . . . . . . . . Machine Destruction 91 | . . . . . . . . 24 . 17 . . . . . . . . . . . 34 . 16 . . . . . . . . Fabnet Peak Effective % . | . . . . . . . . . . . . . . . . . . . . . . . . . . . . . . . . . Robots Rewired 18 | . . . . . 2 . . 6 . . . . . . . . . . . . . 2 . 1 . . . 7 . . . . Allies Hacked . | . . . . . . . . . . . . . . . . . . . . . . . . . . . . . . . . . Hacks Repelled . | . . . . . . . . . . . . . . . . . . . . . . . . . . . . . . . . . Allies | -11 -10 -10 -9 -9 -9 -8 -8 -8 -8 -8 -8 -7 -7 -7 -7 -7 -7 -6 -6 -6 -6 -6 -6 -6 -6 -6 -5 -5 -5 -5 -5 -4 -------- Run | Yrd Mat Min Mat Min Exi Min Mat Gar Mat Gar Mat Fac Was Fac Low Low Dat Pro Fac Was Fac Gar Fac Gar Fac DSF Fac Ext Cet Arc Hub Fac Total Allies 51 | . . . . . 2 . . 6 . 2 . . 19 . . . . . . . . 2 . 1 . . . 14 5 . . . Largest Group 19 | . . . . . 2 2 1 6 5 2 . . 19 12 12 11 5 . . . . 2 . 1 . . . 9 9 8 8 . Highest-Rated Group 720 | . . . . . 29 29 21 149 131 45 . . 465 350 350 315 139 . . . . 97 . 99 . . . 387 720 561 561 . Highest-Rated Ally 159 | . . . . . 21 21 21 39 39 25 . . 35 35 35 35 31 . . . . 51 . 99 . . . 159 159 96 96 . Initial Warlord ECA Mod 48 | . . . . . . . . . 12 12 20 19 19 19 19 19 19 18 18 18 18 18 30 30 39 39 48 48 48 48 48 47 Total Orders 7 | . . . . . . . . . . . . . . . . . . . . . . 1 . . . . . . 2 2 . 2 STAY 3 | . . . . . . . . . . . . . . . . . . . . . . 1 . . . . . . 1 1 . . FOLLOW 2 | . . . . . . . . . . . . . . . . . . . . . . . . . . . . . 1 1 . . RETURN 2 | . . . . . . . . . . . . . . . . . . . . . . . . . . . . . . . . 2 Ally Attacks 527 | . . . . . . 14 . 26 46 4 . . 78 . 27 30 21 . . . . 5 . 5 . . . 162 26 30 28 25 Total Damage 13964 | . . . . . . 151 . 582 897 145 . . 3710 . 549 453 236 . . . . 134 . 153 . . . 3888 527 1014 1203 322 Kills 93 | . . . . . . 5 . 3 10 1 . . 13 . 6 7 . . . . . 4 . 1 . . . 27 4 4 8 . Allies Corrupted 4 | . . . . . . . 1 . . . . . . . . . . . . . . . . 1 . . . . . . 2 . Allies Melted . | . . . . . . . . . . . . . . . . . . . . . . . . . . . . . . . . . Intel | -11 -10 -10 -9 -9 -9 -8 -8 -8 -8 -8 -8 -7 -7 -7 -7 -7 -7 -6 -6 -6 -6 -6 -6 -6 -6 -6 -5 -5 -5 -5 -5 -4 ------- Run | Yrd Mat Min Mat Min Exi Min Mat Gar Mat Gar Mat Fac Was Fac Low Low Dat Pro Fac Was Fac Gar Fac Gar Fac DSF Fac Ext Cet Arc Hub Fac Active Infowar (turns) 7814 | . . 359 47 . . . 702 . . . 488 322 218 72 562 750 155 475 472 698 231 . 39 . 117 355 813 3 . . 170 766 Sensors 7008 | . . . . . . . 603 . . . 351 322 218 72 562 750 155 475 472 698 231 . 39 . 117 355 751 . . . 132 705 Structural 220 | . . . . . . . . . . . 138 . . . . . . . . . . . . . . . 62 3 . . 6 11 Seismic 406 | . . 359 47 . . . . . . . . . . . . . . . . . . . . . . . . . . . . . Jamming 306 | . . . . . . . 99 . . . . . . . . . . . . . . . . . . . . . . . 32 175 Robot Analysis Total 154 | . . . . . . . . . . . . . . . . . 154 . . . . . . . . . . . . . . . Derelict Logs Recovered 4 | . . . . . . . . . . . . . . . 2 1 . 1 . . . . . . . . . . . . . . Drone Launches 10 | . . . . . . . . . . . . . . . . . . . . . . . . . . . . . . . . 10 Drone Recoveries 10 | . . . . . . . . . . . . . . . . . . . . . . . . . . . . . . . . 10 Exploration | -11 -10 -10 -9 -9 -9 -8 -8 -8 -8 -8 -8 -7 -7 -7 -7 -7 -7 -6 -6 -6 -6 -6 -6 -6 -6 -6 -5 -5 -5 -5 -5 -4 ------------- Run | Yrd Mat Min Mat Min Exi Min Mat Gar Mat Gar Mat Fac Was Fac Low Low Dat Pro Fac Was Fac Gar Fac Gar Fac DSF Fac Ext Cet Arc Hub Fac Turns Passed 28966 | 131 564 446 1467 266 996 358 1929 1678 1020 1803 995 656 256 325 572 855 607 475 487 1064 1045 2072 57 2811 173 536 920 1727 515 800 187 1173 Spaces Moved 15055 | 68 270 161 664 162 593 202 921 767 524 861 474 399 184 173 522 548 264 339 333 793 688 1159 29 1347 117 235 406 701 232 401 85 433 Core 21 | 6 . . . . . . . . . . . . . . . . . . . . . . . . . . . . . . . 15 Treads 8192 | 62 270 161 664 162 593 202 921 767 524 861 474 79 . . . 201 101 . . . . 157 29 873 . . . . 203 401 85 402 Legs 5253 | . . . . . . . . . . . . . . . . . 137 339 332 793 688 1002 . 474 117 235 406 701 29 . . . Wheels 1589 | . . . . . . . . . . . . 320 184 173 522 347 26 . 1 . . . . . . . . . . . . 16 Hover . | . . . . . . . . . . . . . . . . . . . . . . . . . . . . . . . . . Flight . | . . . . . . . . . . . . . . . . . . . . . . . . . . . . . . . . . Fastest Speed 50 | 50 160 160 160 160 160 160 158 156 156 162 158 98 98 91 91 91 95 120 120 120 126 120 180 120 120 120 120 190 160 160 160 50 Average Speed 149 | 150 160 160 160 160 160 160 163 161 160 163 161 121 98 92 91 140 181 120 120 124 126 129 180 164 133 133 165 194 167 160 160 159 Slowest Speed 400 | 160 160 160 160 160 160 160 238 235 243 245 163 235 120 98 91 225 260 120 145 140 126 270 180 400 190 190 190 199 320 160 160 240 Overloaded Moves . | . . . . . . . . . . . . . . . . . . . . . . . . . . . . . . . . . Propulsion Burnouts . | . . . . . . . . . . . . . . . . . . . . . . . . . . . . . . . . . Robots Hopped . | . . . . . . . . . . . . . . . . . . . . . . . . . . . . . . . . . Potential Cave-ins . | . . . . . . . . . . . . . . . . . . . . . . . . . . . . . . . . . Cave-ins Triggered . | . . . . . . . . . . . . . . . . . . . . . . . . . . . . . . . . . Exploration Rate (%) 49 | 5 37 20 54 35 88 55 62 85 45 80 37 11 86 5 64 70 80 52 9 95 21 89 2 81 5 95 11 79 55 97 14 15 Regions Visited 32 Branch Regions 12 Pre-discovered Areas 30 | . . . . . 1 . . . . . . . . . 2 1 26 . . . . . . . . . . . . . . . Known Exits Taken 15 | . . . . . . . 1 . 1 . 1 . . 1 1 1 . 1 . . 1 . 1 . 1 . 1 1 1 1 1 . Unknown Exits Taken 8 | 1 1 1 1 1 1 1 . . . . . . . . . . 1 . . . . . . . . . . . . . . . Scrap Searched 10 | . . . . . . . . . . . . . . . 3 6 . 1 . . . . . . . . . . . . . . Spaces Dug 104 | . . . 1 . . . 14 1 1 7 11 9 . . . . 5 . 1 . . . . 1 4 . 26 . . . 4 19 Terrain Destroyed 396 | . . . 5 . . 10 23 9 5 72 11 9 . . . . 5 12 46 . . 1 . 84 4 11 26 38 . . 4 21 Melee 101 | . . . 1 . . . 14 1 1 7 11 9 . . . . 5 . 1 . . . . . 4 . 26 . . . 4 17 Projectile 20 | . . . 4 . . . . . . . . . . . . . . . . . . 1 . 1 . 11 . . . . . 3 AOE 275 | . . . . . . 10 9 8 4 65 . . . . . . . 12 45 . . . . 83 . . . 38 . . . 1 Terrain Rammed . | . . . . . . . . . . . . . . . . . . . . . . . . . . . . . . . . . Walls Destroyed . | . . . . . . . . . . . . . . . . . . . . . . . . . . . . . . . . . Machines Disabled . | . . . . . . . . . . . . . . . . . . . . . . . . . . . . . . . . . Actions | -11 -10 -10 -9 -9 -9 -8 -8 -8 -8 -8 -8 -7 -7 -7 -7 -7 -7 -6 -6 -6 -6 -6 -6 -6 -6 -6 -5 -5 -5 -5 -5 -4 --------- Run | Yrd Mat Min Mat Min Exi Min Mat Gar Mat Gar Mat Fac Was Fac Low Low Dat Pro Fac Was Fac Gar Fac Gar Fac DSF Fac Ext Cet Arc Hub Fac Total 19458 | 84 332 318 918 170 645 226 1181 1062 633 1093 617 517 258 333 617 634 332 389 409 867 794 1514 32 1750 126 394 552 953 339 530 121 718 Wait 1767 | 2 5 125 92 . 1 12 77 95 30 82 50 57 68 148 87 79 5 22 39 5 50 102 1 155 2 56 39 31 39 90 8 113 Move 15028 | 67 269 160 663 161 592 201 921 766 524 860 473 399 183 172 521 547 263 338 333 792 688 1158 29 1345 116 234 405 700 231 400 84 433 Hop . | . . . . . . . . . . . . . . . . . . . . . . . . . . . . . . . . . Pick Up 262 | 4 13 12 27 4 5 . 15 9 8 13 8 5 . 2 2 . 5 4 8 10 5 11 . 23 . 9 21 4 13 6 2 14 Fast Attach 184 | 5 4 1 6 . . . 11 4 4 6 3 4 3 2 2 1 8 1 6 19 . 27 . 34 . 5 4 6 5 5 . 8 Attach 87 | 1 . . 5 . . . 4 6 2 2 2 3 . . . . 4 2 3 . . 9 . 8 . 1 5 7 1 . 3 19 Detach 20 | . . . 1 . . . 1 . . . . 1 . . . 1 1 . 1 . . 3 . . . . 1 3 . . 4 3 Swap 272 | . 1 1 8 1 2 6 26 6 10 23 22 5 1 3 1 3 6 1 3 4 9 18 1 12 3 11 11 18 15 5 10 26 Drop 362 | . 5 3 27 4 10 . 29 8 14 18 14 8 3 4 3 2 5 3 9 32 6 33 . 33 1 26 15 11 19 7 2 8 Fire 473 | 5 35 16 36 . . 6 25 21 5 12 . 1 . . . . . 18 2 5 32 101 . 106 . 14 . 14 8 . . 11 Melee 656 | . . . 53 . . 1 72 56 36 76 45 34 . 2 1 1 35 . 5 . . . . 28 4 19 51 25 8 17 5 82 Ram . | . . . . . . . . . . . . . . . . . . . . . . . . . . . . . . . . . Kick 5 | . . . . . . . . . . . . . . . . . . . . . 4 . . . . . . 1 . . . . Crush 7 | . . . . . . . . . . 1 . . . . . . . . . . . . 1 4 . . . . . . . 1 Escape Stasis 30 | . . . . . . . . 1 . . . . . . . . . . . . . 5 . . . 14 . 10 . . . . Rewire 278 | . . . . . 35 . . 90 . . . . . . . . . . . . . 47 . 2 . 5 . 99 . . . . Trap . | . . . . . . . . . . . . . . . . . . . . . . . . . . . . . . . . . Miscellaneous 27 | . . . . . . . . . . . . . . . . . . . . . . . . . . . . 24 . . 3 . Route ------- -11/Scrapyard -10/Materials -10/Mines (discovered 2 exits: *Mat / [*Sub]) -9/Materials (discovered 2 exits: *Min / [*Sto]) -9/Mines (discovered 2 exits: *Mat / *Exi) -9/Exiles (discovered 2 exits: [*Min x2]) -8/Mines -8/Materials (discovered 3 exits: *Fac x2 / Gar) -8/Garrison (discovered 3 exits: *Mat x3) -8/Materials -8/Garrison (discovered 3 exits: *Mat x3) -8/Materials -7/Factory -7/Waste -7/Factory (discovered 3 exits: *Fac / *Low x2) -7/Lower Caves -7/Lower Caves (discovered 2 exits: *Fac / *Dat) -7/Data Miner -6/Proximity Caves -6/Factory -6/Waste -6/Factory -6/Garrison (discovered 3 exits: *Fac x3) -6/Factory -6/Garrison (discovered 2 exits: *Fac x2) -6/Factory -6/DSF -5/Factory -5/Extension (discovered 3 exits: *Fac x2 / *Cet) -5/Cetus (discovered 2 exits: *Fac / *Arc) -5/Archives (discovered 3 exits: *Fac / *Hub x2) -5/Hub_04(d) (discovered 4 exits: *Fac x4) -4/Factory History --------- Turn | Location | Event 24 | -11/Scrapyard | Discovered new exit (range 16) 132 | -11/Scrapyard | Entered Materials 308 | -10/Materials | Build established: Mutant 637 | -10/Materials | Discovered new exit (range 14) 696 | -10/Materials | Entered Mines 769 | -10/Mines | Excavation squad dispatched 769 | -10/Mines | A large section of the Mines collapsed 1008 | -10/Mines | Discovered new exit (range 4) 1025 | -10/Mines | Discovered new exit (range 5) 1142 | -10/Mines | Entered Materials 1142 | -9/Materials | Evolved 2 slots: Propulsion x2 1472 | -9/Materials | Discovered new exit (range 16) 1970 | -9/Materials | Discovered new exit (range 16) 2609 | -9/Materials | Entered Mines 2627 | -9/Mines | Met a Derelict bent on vengeance 2638 | -9/Mines | Met a Derelict shopkeep closing up shop 2803 | -9/Mines | Discovered new exit (range 6) 2808 | -9/Mines | Received a Rocket Launcher from a helpful Derelict 2868 | -9/Mines | Deemed a non-threat by the Exiles lab entrance 2868 | -9/Mines | Discovered new exit (range 5) 2875 | -9/Mines | Entered Exiles 2875 | -9/Exiles | Found Exiles lab destroyed 3018 | -9/Exiles | Learned location of Zion (-6) 3099 | -9/Exiles | Opened EX-Vault 3110 | -9/Exiles | Found Army-in-a-Box 3594 | -9/Exiles | Discovered new exit (range 14) 3854 | -9/Exiles | Discovered new exit (range 11) 3871 | -9/Exiles | Entered Mines 3871 | -8/Mines | Accompanied by 2 allies 4070 | -8/Mines | Discovered new exit (range 14) 4229 | -8/Mines | Entered Materials 4229 | -8/Materials | Accompanied by 1 ally 4229 | -8/Materials | Evolved 2 slots: Utility x2 4554 | -8/Materials | Build established: Gladiator 5658 | -8/Materials | Discovered new exit (range 16) 5968 | -8/Materials | Destroyed 8 combat bots 6086 | -8/Materials | Discovered new exit (range 16) 6158 | -8/Materials | Identified exit to Garrison 6158 | -8/Materials | Entered Garrison 6190 | -8/Garrison | Triggered checkpoint 6253 | -8/Garrison | Garrison Relay disabled 6324 | -8/Garrison | Triggered checkpoint 6354 | -8/Garrison | Triggered checkpoint 6393 | -8/Garrison | Destroyed 10 combat bots 6431 | -8/Garrison | Triggered checkpoint 6480 | -8/Garrison | Triggered checkpoint 6630 | -8/Garrison | Garrison Relay disabled 6688 | -8/Garrison | Discovered new exit (range 15) 6918 | -8/Garrison | Discovered new exit (range 11) 6980 | -8/Garrison | Triggered checkpoint 7014 | -8/Garrison | Triggered checkpoint 7068 | -8/Garrison | Garrison Relay disabled 7426 | -8/Garrison | Triggered checkpoint 7482 | -8/Garrison | Garrison Relay disabled 7499 | -8/Garrison | Garrison Relay disabled 7567 | -8/Garrison | Build established: Commander-Gladiator 7630 | -8/Garrison | Triggered checkpoint 7696 | -8/Garrison | Garrison Relay disabled 7807 | -8/Garrison | Discovered new exit (range 13) 7836 | -8/Garrison | Entered Materials 7836 | -8/Materials | Accompanied by 5 allies 7925 | -8/Materials | Build established: Scavenger-Gladiator 8636 | -8/Materials | First assault squad dispatched 8757 | -8/Materials | Lost 3 parts (1p2n) 8856 | -8/Materials | Identified exit to Garrison 8856 | -8/Materials | Entered Garrison 9084 | -8/Garrison | Triggered checkpoint 9089 | -8/Garrison | Core integrity fell below 50% 9212 | -8/Garrison | System corruption reached 10% 9245 | -8/Garrison | Lost 3 parts (3n) 9338 | -8/Garrison | Triggered checkpoint 9347 | -8/Garrison | Garrison Relay disabled 9527 | -8/Garrison | Triggered checkpoint 9630 | -8/Garrison | Destroyed 7 combat bots 9681 | -8/Garrison | Triggered checkpoint 9696 | -8/Garrison | Triggered checkpoint 9717 | -8/Garrison | Destroyed 8 combat bots 9769 | -8/Garrison | Triggered checkpoint 9905 | -8/Garrison | Rescued a captive Derelict 9908 | -8/Garrison | Rescued a captive Derelict 9935 | -8/Garrison | Garrison Relay disabled 10009 | -8/Garrison | Discovered new exit (range 10) 10168 | -8/Garrison | Triggered checkpoint 10208 | -8/Garrison | Garrison Relay disabled 10242 | -8/Garrison | Discovered new exit (range 14) 10422 | -8/Garrison | Discovered new exit (range 13) 10477 | -8/Garrison | Core integrity fell below 20% 10495 | -8/Garrison | Garrison Relay disabled 10659 | -8/Garrison | Entered Materials 11642 | -8/Materials | Discovered new exit (range 6) 11648 | -8/Materials | Identified exit to Factory 11654 | -8/Materials | Entered Factory 11654 | -7/Factory | Evolved 2 slots: Weapon x2 12063 | -7/Factory | Build established: Gladiator 12166 | -7/Factory | Central database locked down 12310 | -7/Factory | Sucked down chute 12310 | -7/Factory | Entered Waste 12337 | -7/Waste | Spotted C-40 Crusher 12347 | -7/Waste | Spotted C-40 Crusher 12355 | -7/Waste | Spotted C-40 Crusher 12355 | -7/Waste | Spotted C-40 Crusher 12366 | -7/Waste | Warlord forces began an assault 12380 | -7/Waste | Allies destroyed C-40 Crusher 12380 | -7/Waste | Allies destroyed C-40 Crusher 12380 | -7/Waste | Spotted C-40 Crusher 12382 | -7/Waste | Allies destroyed C-40 Crusher 12387 | -7/Waste | Allies destroyed C-40 Crusher 12388 | -7/Waste | Build established: Scavenger-Gladiator 12394 | -7/Waste | Allies destroyed C-40 Crusher 12409 | -7/Waste | Spotted C-40 Crusher 12411 | -7/Waste | Lost 7 allies 12417 | -7/Waste | Allies destroyed C-40 Crusher 12511 | -7/Waste | Discovered new exit (range 16) 12525 | -7/Waste | Identified exit to Factory 12566 | -7/Waste | Entered Factory 12566 | -7/Factory | Accompanied by 12 allies 12754 | -7/Factory | Identified exit to Lower Caves 12830 | -7/Factory | Discovered new exit (range 15) 12847 | -7/Factory | Identified exit to Factory 12891 | -7/Factory | Entered Lower Caves 12891 | -7/Lower Caves | Accompanied by 12 allies 12901 | -7/Lower Caves | Met a Warlord Commander 12902 | -7/Lower Caves | Learned location of Warlord (-4) 12903 | -7/Lower Caves | Warlord Commander delivered Encrypted Comm Array 12927 | -7/Lower Caves | Found Encrypted Comm Array 13037 | -7/Lower Caves | Build established: Scientist-Gladiator 13038 | -7/Lower Caves | Learned location of Extension (-5) 13088 | -7/Lower Caves | Encountered a Warlord checkpoint 13108 | -7/Lower Caves | Learned Factory trap positions 13414 | -7/Lower Caves | Discovered new exit (range 13) 13440 | -7/Lower Caves | Identified exit to Lower Caves 13463 | -7/Lower Caves | Entered another Lower Caves area 13463 | -7/Lower Caves | Accompanied by 11 allies 13495 | -7/Lower Caves | Discovered exit to Factory (range 8) 13669 | -7/Lower Caves | Encountered a Warlord checkpoint 13799 | -7/Lower Caves | Entered a destroyed Warlord outpost 13962 | -7/Lower Caves | Discovered new exit (range 16) 14295 | -7/Lower Caves | Identified exit to Data Miner 14318 | -7/Lower Caves | Entered Data Miner 14318 | -7/Data Miner | Accompanied by 5 allies 14318 | -7/Data Miner | Discovered new exit (range 6) 14361 | -7/Data Miner | Met Data Miner 14399 | -7/Data Miner | Learned location of Section 7 (-3) 14399 | -7/Data Miner | Acquired the access code to Warlord's prototype stash 14435 | -7/Data Miner | Received God Mode back door access code from Data Miner 14524 | -7/Data Miner | Interfaced with the Data Conduit 14578 | -7/Data Miner | Lost 5 allies 14590 | -7/Data Miner | Core integrity fell below 50% 14604 | -7/Data Miner | Core integrity fell below 20% 14609 | -7/Data Miner | Found Exp. Thermal Shield 14653 | -7/Data Miner | Lost 7 parts (1p4n1u1w) 14838 | -7/Data Miner | Found Exp. Thermal Shield 14849 | -7/Data Miner | Found Exp. Thermal Shield 14925 | -7/Data Miner | Entered Proximity Caves 14961 | -6/Proximity Caves | Build established: Scavenger-Gladiator 15044 | -6/Proximity Caves | Destroyed 7 combat bots 15105 | -6/Proximity Caves | Learned Factory emergency access door positions 15249 | -6/Proximity Caves | System corruption reached 10% 15381 | -6/Proximity Caves | Discovered exit to Factory (range 7) 15400 | -6/Proximity Caves | Entered Factory 15400 | -6/Factory | Evolved 2 slots: Propulsion x2 15401 | -6/Factory | Loaded intel: 80 trap records 15403 | -6/Factory | Loaded intel: 324 machine locations 15517 | -6/Factory | Build established: Scavenger-Mutant 15613 | -6/Factory | Fabricated Lgt. Regenerative Plating (x1) 15887 | -6/Factory | Manually triggered Chute Trap 15887 | -6/Factory | Sucked down chute 15887 | -6/Factory | Entered Waste 15887 | -6/Waste | The area was eerily silent 15905 | -6/Waste | Found Gamma Bomb Array 16028 | -6/Waste | Discovered new exit (range 13) 16540 | -6/Waste | Identified exit to Factory 16933 | -6/Waste | Build established: Scavenger-Gunner 16951 | -6/Waste | Entered Factory 16952 | -6/Factory | Loaded intel: 262 machine locations 17996 | -6/Factory | Identified exit to Garrison 17996 | -6/Factory | Entered Garrison 17997 | -6/Garrison | Loaded intel: 35 machine locations 17999 | -6/Garrison | Triggered checkpoint 18136 | -6/Garrison | Triggered checkpoint 18140 | -6/Garrison | Garrison Relay disabled 18282 | -6/Garrison | Triggered checkpoint 18373 | -6/Garrison | Destroyed 7 combat bots 18391 | -6/Garrison | Lost 3 parts (1u2w) 18516 | -6/Garrison | Triggered checkpoint 18565 | -6/Garrison | Garrison Relay disabled 18628 | -6/Garrison | Garrison Relay disabled 18642 | -6/Garrison | Garrison Relay disabled 18656 | -6/Garrison | Garrison Relay disabled 18704 | -6/Garrison | Garrison Relay disabled 18890 | -6/Garrison | Discovered new exit (range 9) 18916 | -6/Garrison | Spotted B-75 Beast 18935 | -6/Garrison | Destroyed B-75 Beast 18998 | -6/Garrison | Identified exit to Factory 19261 | -6/Garrison | Garrison Relay disabled 19270 | -6/Garrison | Triggered checkpoint 19330 | -6/Garrison | Discovered exit to Factory (range 3) 19540 | -6/Garrison | Triggered checkpoint 19578 | -6/Garrison | Triggered checkpoint 19604 | -6/Garrison | Garrison Relay disabled 19630 | -6/Garrison | Discovered exit to Factory (range 32) 19630 | -6/Garrison | Discovered exit to Factory (range 55) 19630 | -6/Garrison | Discovered exit to Factory (range 77) 20068 | -6/Garrison | Entered Factory 20069 | -6/Factory | Loaded intel: 258 machine locations 20125 | -6/Factory | Identified exit to Garrison 20125 | -6/Factory | Entered Garrison 20126 | -6/Garrison | Loaded intel: 24 machine locations 20166 | -6/Garrison | Rewired Striker 20211 | -6/Garrison | Triggered checkpoint 20235 | -6/Garrison | Garrison Relay disabled 20280 | -6/Garrison | Build established: Gladiator 20383 | -6/Garrison | Triggered checkpoint 20397 | -6/Garrison | Triggered checkpoint 20757 | -6/Garrison | Triggered checkpoint 20849 | -6/Garrison | Garrison Relay disabled 20980 | -6/Garrison | Phase Generator disabled 21215 | -6/Garrison | Garrison Relay disabled 21275 | -6/Garrison | Triggered checkpoint 21306 | -6/Garrison | Destroyed 9 combat bots 21347 | -6/Garrison | Triggered checkpoint 21385 | -6/Garrison | Spotted B-75 Beast 21415 | -6/Garrison | Core integrity fell below 50% 21421 | -6/Garrison | Destroyed 7 combat bots 21446 | -6/Garrison | Destroyed B-75 Beast 21451 | -6/Garrison | System corruption reached 10% 21460 | -6/Garrison | Garrison Relay disabled 21461 | -6/Garrison | Lost 9 parts (1p3n1u4w) 21499 | -6/Garrison | Discovered new exit (range 9) 21547 | -6/Garrison | System corruption reached 30% 22019 | -6/Garrison | Triggered checkpoint 22143 | -6/Garrison | Lost 12 parts (8n1u3w) 22507 | -6/Garrison | Build established: Scavenger-Gunner 22701 | -6/Garrison | Identified exit to Factory 22705 | -6/Garrison | Attempted to access garrison exit controls, blocked by remote lockdown 22909 | -6/Garrison | Discovered exit to Factory (range 11) 22936 | -6/Garrison | Entered Factory 22937 | -6/Factory | Loaded intel: 322 machine locations 23109 | -6/Factory | Identified exit to DSF 23109 | -6/Factory | Entered DSF 23110 | -6/DSF | Loaded intel: 2 machine locations 23162 | -6/DSF | Additional patrols routed to DSF 23575 | -6/DSF | Sterilization system engaged 23591 | -6/DSF | Build established: Mutant 23595 | -6/DSF | Ambient heat levels rising (+10) 23610 | -6/DSF | Ambient heat levels rising (+10) 23625 | -6/DSF | Ambient heat levels rising (+10) 23629 | -6/DSF | Discovered new exit (range 14) 23640 | -6/DSF | Ambient heat levels rising (+10) 23643 | -6/DSF | Identified exit to Factory 23645 | -6/DSF | Entered Factory 23645 | -5/Factory | Evolved 2 slots: Propulsion x2 23646 | -5/Factory | Loaded intel: 216 machine locations 23860 | -5/Factory | Found Prototype Launcher 23860 | -5/Factory | Identified Tesla Bomb Launcher 23866 | -5/Factory | Found Faulty Tesla Bomb Launcher 23869 | -5/Factory | Found Tesla Bomb Launcher 23882 | -5/Factory | Found Tesla Bomb Launcher 23892 | -5/Factory | Found Faulty Tesla Bomb Launcher 24142 | -5/Factory | Build established: Hauler-Mutant 24521 | -5/Factory | Discovered new exit (range 16) 24563 | -5/Factory | Identified exit to Extension 24565 | -5/Factory | Entered Extension 24566 | -5/Extension | Loaded intel: 42 machine locations 24743 | -5/Extension | Spotted B-75 Beast 24754 | -5/Extension | Destroyed B-75 Beast 24863 | -5/Extension | Build established: Hauler-Gunner 24888 | -5/Extension | Spotted B-75 Beast 24907 | -5/Extension | Destroyed B-75 Beast 25116 | -5/Extension | Rescued a captive Derelict 25117 | -5/Extension | Rescued a captive Derelict 25181 | -5/Extension | Rescued a captive Derelict 25213 | -5/Extension | Build established: Hauler-Mutant 25400 | -5/Extension | Rescued A7 25483 | -5/Extension | Rescued a captive Derelict 25514 | -5/Extension | Energy Cycler disabled 25514 | -5/Extension | Rescued a captive Derelict 25514 | -5/Extension | Rescued a captive Derelict 25514 | -5/Extension | Rescued a captive Derelict 25515 | -5/Extension | Rescued a captive Derelict 25515 | -5/Extension | Rescued a captive Derelict 25515 | -5/Extension | Rescued a captive Derelict 25518 | -5/Extension | Rescued a captive Derelict 25522 | -5/Extension | Rescued a captive Derelict 25532 | -5/Extension | Rescued a captive Derelict 25616 | -5/Extension | Discovered new exit (range 15) 25822 | -5/Extension | Discovered new exit (range 16) 25826 | -5/Extension | Discovered new exit (range 14) 26065 | -5/Extension | First assault squad dispatched 26194 | -5/Extension | Lost 6 allies 26277 | -5/Extension | Identified exit to Cetus 26292 | -5/Extension | Entered Cetus 26292 | -5/Cetus | Accompanied by 5 allies (A7) 26293 | -5/Cetus | Loaded intel: 24 machine locations 26297 | -5/Cetus | Acquired a Cetus Manufacturing Module code from A7 26323 | -5/Cetus | Spotted Cetus Guard 26323 | -5/Cetus | Spotted Cetus Guard 26326 | -5/Cetus | Spotted Cetus Guard 26327 | -5/Cetus | Allies destroyed Cetus Guard 26328 | -5/Cetus | Destroyed Cetus Guard 26328 | -5/Cetus | Spotted Cetus Guard 26330 | -5/Cetus | Destroyed Cetus Guard 26340 | -5/Cetus | Allies destroyed Cetus Guard 26364 | -5/Cetus | System corruption reached 10% 26383 | -5/Cetus | System corruption reached 30% 26457 | -5/Cetus | Started Cetus Manufacturing Module 26478 | -5/Cetus | Discovered new exit (range 15) 26482 | -5/Cetus | Manufactured an Enhanced Grunt 26507 | -5/Cetus | Manufactured an Enhanced Grunt 26513 | -5/Cetus | Spotted Cetus Guard 26513 | -5/Cetus | Spotted Cetus Guard 26519 | -5/Cetus | Spotted Cetus Guard 26520 | -5/Cetus | Allies destroyed Cetus Guard 26523 | -5/Cetus | Destroyed Cetus Guard 26524 | -5/Cetus | Destroyed Cetus Guard 26524 | -5/Cetus | Spotted Cetus Guard 26526 | -5/Cetus | Destroyed Cetus Guard 26532 | -5/Cetus | Manufactured an Enhanced Grunt 26538 | -5/Cetus | Discovered new exit (range 15) 26546 | -5/Cetus | Met Revision 17 26557 | -5/Cetus | Manufactured an Enhanced Grunt 26582 | -5/Cetus | Manufactured an Enhanced Grunt 26664 | -5/Cetus | Identified exit to Archives 26700 | -5/Cetus | Murdered A7 26705 | -5/Cetus | Extracted ID and sensor layout for unrecognized location from A7's data core 26712 | -5/Cetus | Found Corrupted Prototype Protection 26712 | -5/Cetus | Identified Med. Regenerative Plating 26807 | -5/Cetus | Entered Archives 26807 | -5/Archives | Accompanied by 8 allies 26808 | -5/Archives | Loaded intel: 8 machine locations 26851 | -5/Archives | Discovered new exit (range 16) 26860 | -5/Archives | Build established: Commander-Mutant 26886 | -5/Archives | Discovered new exit (range 16) 26941 | -5/Archives | Discovered new exit (range 16) 27596 | -5/Archives | Identified exit to Hub_04(d) 27607 | -5/Archives | Entered Hub_04(d) 27607 | -5/Hub_04(d) | Accompanied by 8 allies 27608 | -5/Hub_04(d) | Loaded intel: 102 machine locations 27624 | -5/Hub_04(d) | Identified exit to Factory 27624 | -5/Hub_04(d) | Network Hub disabled 27704 | -5/Hub_04(d) | Network Hub disabled 27742 | -5/Hub_04(d) | Lost 8 allies 27775 | -5/Hub_04(d) | Spotted Lightning 27775 | -5/Hub_04(d) | Spotted Lightning 27778 | -5/Hub_04(d) | Spotted Lightning 27794 | -5/Hub_04(d) | Entered Factory 27794 | -4/Factory | Evolved 2 slots: Utility x2 27795 | -4/Factory | Loaded intel: 284 machine locations 28213 | -4/Factory | Build established: Scavenger-Mutant 28813 | -4/Factory | Spotted B-86 Titan 28817 | -4/Factory | System corruption reached 10% 28883 | -4/Factory | Core integrity fell below 50% 28897 | -4/Factory | Destroyed B-86 Titan 28910 | -4/Factory | Lost 18 parts (2p8n4u4w) 28967 | -4/Factory | Self-destructed Last Messages --------------- 28956_ Acquired Imp. Sensor Array. 28956_ U-05 Engineer lays Concrete. 28957_ K-01 Serf collects debris. 28957_ U-05 Engineer lays Concrete. 28958_ U-05 Engineer builds a Wall. 28958_ K-01 Serf collects debris. 28958_ U-05 Engineer lays Concrete. 28959_ U-05 Engineer builds a Wall. 28959_ U-05 Engineer builds a Door. 28959_ Acquired Adv. Sensor Array. 28960_ U-05 Engineer lays Concrete. 28960_ K-01 Serf collects debris. 28961_ U-05 Engineer lays Concrete. 28962_ K-01 Serf collects debris. 28962_ U-05 Engineer builds a Door. 28962_ U-05 Engineer lays Concrete. 28963_ K-01 Serf collects debris. 28963_ U-05 Engineer lays Concrete. 28966_ K-01 Serf collects debris. 28966_ U-05 Engineer lays Concrete. Map ----- +----------------------------------------------------+ | ?????????????????????????????????????????????????? | | ?????????????????????????????????????????????????? | | ??????????????????????????????????????????????"""" | | ??????????????????????????????????????????????"""" | | ??????????????????????????????????????????????"""" | | ??????????????????? ??????????????????????"""" | | ???????????????? # ?????????????????????? | | ????????????? # ???????????????????? | | ???????????? ????????????????? | | ??????????? ! ??????????????? | | ""???????""" # ????????????? | | ""???????""" !!!# u ????????????? | | ""???????""" !! # p #??????????? | | ??????????""? !! # #??????????? | | ""????????""??? # # """""""??? | | ""?????????????? +?"""""""??? | | ""???????????????# k t #?"""""""??? | | ?????????????????#k #?"""""""??? | | ?????????????????# u !% #??????????? | | ?????????????????## ! ##""???????????? | | ?????????????????# * *# ##???????????? | | ?????????????????## ] #[ #???????????? | | ????????????????### !%! [ %#! ############? | | ????????????????# k!] u u w # ############? | | ????????????????# k % !#### ##? | | ????????????????### @%%!%% %# # * !##? | | ??????????????????#####;;#; o#+##+#### ### | | ??????????????????????# ![%%% ### # | | ??????????????????????# * =# # % # | | ??????????????????????# ##" / | | ??????????????????????# # # ! # | | ??????????????????????# ### # | | ??????????????????????# #######+##+## | | ??????????????????????# + + | | ??????????????????????# """ #?"""""? #### | | ??????????????????????# """"" #?"""""??####"# | | ??????????????????????# """ # """?????# | | ??????????????????????# # ????????# | | ??????????????????????# | # """""???# """ | | """???????????????????##############?"""""???# """ | | """??????????????????????????????????"""?????# """ | | """??????????????????????????????????????????# | | """??????????????????????????????????????????# | | ?????????????????????????????????????????????# | | """??????????????????????????????????????????##### | | """???????????????????????????????????????????#### | | """???????????????????????????????????????????#### | | """??????????????????????"""""""??????????????## | | ?????????????????????????"""""""??????????????## | | ?????????????????????????"""""""??????????????## | +----------------------------------------------------+ Best States ------------- Heat Dissipation 91 Energy Generation 25 Energy Capacity 850 Matter Stores 300 Matter Capacity 300 Sight Range 16 Robot Scan Range 16 Terrain Scan Density 10 Jamming Range 14 EM Shielding 2 Armor Coverage 450 Resistance: KI 20 Resistance: TH 30 Core Shielding 30 Propulsion Shielding 66 Weapon Cycling 15 Evasion (%) 55 Melee Accuracy 8 Core Analysis 6 Recoil Reduction 8 Force Boost 20 Salvage Targeting 1 Offensive Hacking 26 Defensive Hacking 10 Authchip Count 2 Item Schematics ----------------- Cargo Storage Unit | -10/Materials | Hacked Actuator Array | -7/Factory | Scanalyzed Combat Drone Bay | -7/Data Miner | Free Lgt. Regenerative Plating | -7/Data Miner | Free Biomechanical Wings | -7/Data Miner | Free Exp. Targeting Computer | -7/Data Miner | Free Scatter Rocket Array | -7/Data Miner | Free Hvy. Treads | -7/Data Miner | Free Imp. Corruption Screen | -7/Data Miner | Free Lrn. Proton Cannon | -7/Data Miner | Free Jamming Amplifier | -7/Data Miner | Free Adv. Target Analyzer | -7/Data Miner | Free Railgun | -7/Data Miner | Free Robot Schematics ------------------ B-48 Gladiator | -7/Data Miner | Free H-55 Commando | -7/Data Miner | Free M-28 Smith | -7/Data Miner | Free Y-54 Guardian | -7/Data Miner | Free S-27 Virus | -7/Data Miner | Free B-60 Warrior | -7/Data Miner | Free D-63 Destroyer | -7/Data Miner | Free Fabricated ------------ Lgt. Regenerative Plating | x1 | -6/Factory | Authchip Repaired ---------- Nothing Studied --------- Arm. Huge Wheel | -7/Factory | Hacked Wheel | -7/Factory | Hacked Scythe | -7/Factory | Hacked Katana | -7/Factory | Hacked Spear | -7/Factory | Hacked Power Maul | -7/Factory | Hacked Adv. Treads | -7/Factory | Hacked Shock Bomb Launcher | -7/Factory | Hacked Alien Tech Used ----------------- None Achievements -------------- None Challenges ------------ None Game ------ Seed CouplerTargetingTurretformer Manual? 0 Play Time 04:07:51 Cumulative 486.2 hours Start 2026.07.24 @ 06:43:43 End 2026.07.25 @ 01:30:27 Sessions 3 Manual Loads 0 Difficulty Rogue Special Mode None Game No. 435 Rogue 435 Adventurer 0 Explorer 0 Win Type - Total 13 Types 7/0/3/1/0/0/0/1/0/1 Lore% 63 Gallery% 70 Achievement% 66 Wizard Run 0 Options --------- Layout 1 ASCII 0 Keyboard 0 Movement Mouse Keybinds 0 Fullscreen 2 Font 24/Cog Map View 50x35 Zoom Use 11% Tactical HUD 1 Map Filters NONE Filters NONE Steam 1 RUN: b6e9098b-a61e-4fe6-aceb-0fe7391f92ce